Cogmind - Beta 15 @@@ ROGUE MODE // 2025.06.25 @ 21:11:39 Player: Cog on my mind Result: Heading to fleet! Performance ------------- Evolutions (9) 4500 Regions Visited (29) 5800 Robots Destroyed (666) 3330 Value Destroyed (34678) 34678 Prototype IDs (125) 2500 Alien Tech Used (7) 1400 Bonus (25443) 25443 TOTAL SCORE: 77651 Bonus ------- High Alert Combat Kills 6586 Follower Combat Kills 4539 Network Hubs Disabled 400 Registered with UFD 300 Met Optimus in HQ 500 Met Zhirov 300 Built Enhanced Grunts 300 A7 Reached Mainframe 300 Met R17 at Cetus 500 Used Core Reset Matrix 3000 Met R17 at Research 2000 Scanned by Researcher 500 Pursued by Intercept 1000 Acquired SGEMP 2000 Met Sigix 2000 Win 3000 Friendly Fire -1782 Cogmind --------- Core Integrity 1018/1600 Matter 795/800 Energy 336/350 System Corruption 23% Temperature Cool (7) Movement Treading (160) Location To Fleet Rendezvous Parts ------- > --- POWER (3) -------- Quantum Reactor > --- PROPULSION (6) --- Centrium Heavy Treads Enhanced Armored Heavy Treads > --- UTILITY (14) ----- Huge Storage Unit Experimental Matter Compressor Advanced Point Defense System > --- WEAPON (2) ------- (None) > --- INVENTORY (25) --- Advanced Energy Well (311) Long-range Sensor Array Long-range Terrain Scanner Experimental Terrain Scan Processor Advanced Thermal Defense Suite Advanced Force Field Long-range Tractor Beam Transdimensional Reconstructor Null Cannon Improved Potential Cannon Enhanced Gamma Bomb Array Enhanced Gamma Bomb Array SGEMP Prototype Peak State ------------ > --- POWER ------------ Quantum Reactor Quantum Reactor Light Quantum Reactor > --- PROPULSION ------- Experimental Biometal Heavy Treads Experimental Biometal Heavy Treads Advanced Heavy Siege Treads > --- UTILITY ---------- Experimental Power Amplifier Experimental Heat Sink Advanced Coolant Injector Huge Storage Unit Spectral Analyzer Long-range Sensor Array Experimental Signal Interpreter Advanced Targeting Computer Quantum Capacitor Layered Medium Armor Plating Experimental Focal Shield Advanced Force Field Deep Network Scanner > --- WEAPON ----------- Null Cannon Enhanced Gamma Bomb Array > --- INVENTORY -------- Particle Reactor Light Quantum Reactor Advanced Heavy Siege Treads Advanced Energy Well Experimental Matter Compressor Long-range Terrain Scanner Experimental Terrain Scan Processor Energy Filter Improved Weapon Shielding Heavy Armor Plating Advanced Thermal Defense Suite Advanced Point Defense System Long-range Tractor Beam Transdimensional Reconstructor Transdimensional Reconstructor Subatomic Replicator Improved Potential Cannon Sigix Terminator Zhirov Special SGEMP Prototype [Rating: 228] Favorites ----------- Power Reinforced Fission Core Engine Heavy Ion Engine Power Core Reinforced Fission Core Reactor Light Quantum Reactor Propulsion Armored Treads Treads Armored Treads Wheel Armored Huge Wheel Utility Huge Storage Unit Device Seismic Detector Storage Huge Storage Unit Processor Spectral Analyzer Hackware Improved Hacking Suite Protection Centrium Medium Armor Plating Artifact Phase Redirector Weapon Cooled Phase Gun Energy Gun Cooled Phase Gun Energy Cannon Cooled Phase Cannon Ballistic Gun Enhanced Autogun Ballistic Cannon Hypervelocity Mass Driver Launcher Enhanced Gamma Bomb Array Special Weapon Plasma Cutter Slashing Weapon Phasing Sabre Build | -11 -10 -10 -9 -9 -8 -8 -8 -8 -6 -5 -5 -5 -5 -5 -5 -4 -4 -4 -4 -4 -4 -4 -4 -3 -3 -2 -2 -2 -1 ------- Run | Yrd Mat Min Mat Min Mat Sto Rec Scr Fac Fac Was Fac Upp Upp Zhi Pro Fac Was Fac Ext Cet Arc Hub Res Tes Res Qua Sec Acc Slots Evolved 18 | . . . 2 . 2 . . . 4 2 . . . . . . 2 . . . . . . 2 . 2 . . 2 Power 2 | . . . . . . . . . . 1 . . . . . . . . . . . . . . . 1 . . . Propulsion 4 | . . . 1 . 1 . . . 1 . . . . . . . 1 . . . . . . . . . . . . Utility 12 | . . . 1 . 1 . . . 3 1 . . . . . . 1 . . . . . . 2 . 1 . . 2 Weapon . | . . . . . . . . . . . . . . . . . . . . . . . . . . . . . . Parts Attached 327 | 7 9 2 19 2 7 12 1 7 27 15 12 2 1 1 5 . 13 10 7 9 9 11 5 19 24 20 17 8 46 Power 45 | 1 . 1 3 . . 1 . . 2 4 4 1 . 1 1 . . 3 . . 1 1 . 1 2 5 . 3 10 Engine 8 | 1 . 1 3 . . 1 . . 1 1 . . . . . . . . . . . . . . . . . . . Core 6 | . . . . . . . . . . 3 1 1 . 1 . . . . . . . . . . . . . . . Reactor 31 | . . . . . . . . . 1 . 3 . . . 1 . . 3 . . 1 1 . 1 2 5 . 3 10 Propulsion 45 | 2 1 . 5 . 1 1 1 2 6 2 3 . . . . . . 3 . . 1 1 1 1 2 5 . 1 6 Treads 41 | 2 1 . 3 . 1 1 1 1 5 2 3 . . . . . . 3 . . 1 1 1 1 2 5 . 1 6 Leg . | . . . . . . . . . . . . . . . . . . . . . . . . . . . . . . Wheel 4 | . . . 2 . . . . 1 1 . . . . . . . . . . . . . . . . . . . . Hover . | . . . . . . . . . . . . . . . . . . . . . . . . . . . . . . Flight . | . . . . . . . . . . . . . . . . . . . . . . . . . . . . . . Utility 168 | 2 5 . 5 1 1 4 . 3 10 6 4 1 . . 2 . 9 3 5 9 3 7 4 14 16 7 17 4 26 Device 96 | 1 2 . 2 1 . 2 . 2 6 5 4 1 . . . . 4 1 3 4 1 3 4 11 7 4 10 3 15 Storage 9 | 1 2 . . . . . . 1 . . . . . . 1 . . . . . . . . 1 2 . . . 1 Processor 19 | . 1 . . . . . . . 2 1 . . . . . . 2 1 1 . . . . 1 3 1 3 . 3 Hackware 12 | . . . . . . 1 . . 2 . . . . . . . 1 . . 1 . 4 . 1 . . . . 2 Protection 31 | . . . 3 . 1 1 . . . . . . . . 1 . 2 1 1 4 2 . . . 4 2 3 1 5 Artifact 1 | . . . . . . . . . . . . . . . . . . . . . . . . . . . 1 . . Weapon 69 | 2 3 1 6 1 5 6 . 2 9 3 1 . 1 . 2 . 4 1 2 . 4 2 . 3 4 3 . . 4 Energy Gun 27 | 2 1 . 2 . 5 3 . 1 6 1 1 . . . 1 . . . . . 1 . . . 2 1 . . . Energy Cannon 18 | . 2 1 4 . . . . . . 1 . . . . 1 . 1 . 1 . . . . 3 1 1 . . 2 Ballistic Gun 2 | . . . . . . 1 . . . . . . . . . . . . . . 1 . . . . . . . . Ballistic Cannon 5 | . . . . . . . . . . . . . . . . . 1 1 1 . 1 . . . . 1 . . . Launcher 10 | . . . . 1 . 1 . . 3 . . . 1 . . . 1 . . . . . . . 1 . . . 2 Special Weapon 5 | . . . . . . 1 . 1 . 1 . . . . . . 1 . . . 1 . . . . . . . . Impact Weapon . | . . . . . . . . . . . . . . . . . . . . . . . . . . . . . . Slashing Weapon 2 | . . . . . . . . . . . . . . . . . . . . . . 2 . . . . . . . Piercing Weapon . | . . . . . . . . . . . . . . . . . . . . . . . . . . . . . . Special Melee Weapon . | . . . . . . . . . . . . . . . . . . . . . . . . . . . . . . Unidentified Prototypes 44 | . . . 4 . 3 2 . 1 . . 4 . . . 4 . 2 1 . . 3 . . 4 6 1 2 . 7 Corrupted Parts 1 | . . . . . . . . . . . . . . . . . . . . . . . 1 . . . . . . System Corruption 5 | . . . . . . . . . . . . . . . . . . . . . . . 5 . . . . . . Parts Lost 89 | . 1 2 3 1 . 2 . 1 14 7 . . . 1 . . 5 . 2 4 . 1 1 . 8 8 1 1 26 Power 18 | . . 1 . . . . . . 1 2 . . . 1 . . . . . 1 . . . . 2 3 . . 7 Propulsion 16 | . . . 1 . . . . . 6 1 . . . . . . . . 1 1 . . 1 . 1 1 . . 3 Utility 44 | . . . 1 1 . 2 . 1 3 3 . . . . . . 5 . 1 2 . 1 . . 5 3 1 1 14 Weapon 11 | . 1 1 1 . . . . . 4 1 . . . . . . . . . . . . . . . 1 . . 2 Highest Loss Streak 17 | . 1 1 1 1 . 1 . 1 4 4 . . . 1 . . 4 . 2 2 . 1 1 . 2 6 1 1 17 To Critical Strikes 2 | . . . . . . . . . . . . . . . . . . . . . . . . . . . . . 2 Average Backups 18 | 1 9 14 13 14 14 14 15 15 15 21 19 18 19 20 20 19 21 19 21 22 22 22 22 21 20 18 19 19 17 Power 1 | . 2 2 1 1 1 1 1 1 . . 1 2 2 2 1 1 1 1 1 . 1 2 2 1 1 . . 1 1 Propulsion 2 | . 2 3 1 1 . 1 1 1 2 5 2 2 3 3 3 3 3 3 2 2 1 2 2 2 1 1 1 1 1 Utility 8 | . 3 5 5 5 5 4 5 7 5 10 8 8 9 10 11 11 10 5 10 11 10 10 11 10 12 9 12 12 9 Weapon 4 | . 1 4 4 6 6 7 6 4 5 3 4 4 4 4 3 2 4 6 5 6 6 6 5 4 3 5 2 2 2 Tool/Special . | . . . . . . . . . . . . . . . . . . . . . . . . . . . . . . Unused Backups 83 | . 1 1 10 1 3 2 1 4 3 5 9 1 2 1 2 1 1 1 . 2 1 1 3 3 12 2 . 2 8 Power 8 | . . 1 2 . . . . . . . . . . . . . 1 . . . . 1 . 1 . . . . 2 Propulsion 15 | . . . 1 1 . . . . 1 2 3 . . . . . . . . 1 . . 1 . 2 2 . 1 . Utility 37 | . . . 4 . . 2 1 2 2 3 6 . 2 1 2 . . . . . 1 . 2 1 5 . . 1 2 Weapon 20 | . 1 . 3 . 3 . . 2 . . . 1 . . . 1 . 1 . 1 . . . 1 5 . . . 1 Tool/Special 3 | . . . . . . . . . . . . . . . . . . . . . . . . . . . . . 3 Average Slot Usage (%) 85 | . 99 100 99 98 89 98 100 99 89 77 76 75 76 76 66 75 71 82 81 78 83 83 79 79 82 79 81 81 77 Engine 3 | . 14 14 11 11 9 9 9 9 5 . . . . . . . . . . . . . . . . . . . . Core 1 | . . . . . . . . . . 8 5 1 5 6 8 5 5 4 . 2 5 5 5 . . . . . . Reactor 5 | . . . . . . . . . . 2 5 8 5 4 2 5 5 5 10 7 5 5 5 9 8 12 13 12 11 Treads 20 | . 28 28 28 33 36 35 36 35 20 15 17 16 17 17 17 17 14 19 18 15 15 15 15 14 13 14 13 13 11 Device 20 | . 6 14 12 16 9 21 27 26 20 20 23 23 23 23 22 23 19 30 25 23 21 14 10 20 21 18 17 19 26 Storage 6 | . 14 14 11 11 9 9 9 9 6 5 5 5 5 5 5 5 5 5 5 5 5 5 5 4 4 4 4 4 4 Processor 4 | . 7 . . . . . . . 10 4 . . . . . . 2 5 5 5 5 5 5 4 10 13 14 13 11 Hackware 4 | . . . . . . 3 . . 5 5 5 5 5 5 5 5 4 5 5 5 5 10 14 9 7 4 4 3 3 Protection 3 | . . . 9 3 8 2 . . . . . . . . . . 4 . 5 7 10 10 6 6 3 4 5 3 4 Energy Gun 6 | . 8 . . . 15 17 18 17 11 10 11 11 10 10 2 4 3 . . . . . . . 4 5 . . . Energy Cannon 5 | . 19 28 21 21 2 . . . . . . . . . . 4 3 . . . 4 5 5 7 4 1 5 8 3 Peak Build Rating 228 | 7 9 9 27 27 36 37 33 38 114 140 138 135 137 137 137 138 158 154 155 155 158 157 156 175 186 208 214 214 228 Average Rating 117 | 5 7 8 21 26 35 34 32 34 63 129 133 132 136 136 123 137 150 150 150 147 148 154 154 172 174 188 204 208 213 On Entrance 109 | . 7 9 9 26 27 35 33 33 31 114 132 134 134 137 135 122 138 150 151 152 132 157 155 156 167 177 196 214 210 Naked Turns . | . . . . . . . . . . . . . . . . . . . . . . . . . . . . . . Heaviest Build 213 | 14 32 32 43 40 53 53 41 101 108 140 148 139 142 142 140 145 165 195 199 187 188 187 169 174 173 186 204 201 213 Greatest Support 250 | 40 40 40 60 60 80 80 80 82 182 160 160 145 145 145 145 145 235 235 230 225 225 225 235 235 225 250 250 250 250 Greatest Overweight (x) 2 | . . . 2 . . 1 . 2 2 . 1 1 . . . . . 1 . 1 1 1 . . . . . 1 1 Average Overweight (x) . | . . . . . . . . . . . . . . . . . . . . . . . . . . . . . . Largest Inventory Capacity 25 | 8 15 15 15 15 15 15 15 25 25 25 25 25 25 25 25 25 25 25 25 25 25 25 25 25 25 25 25 25 25 Average Capacity 21 | 6 14 15 15 15 15 15 15 16 17 25 25 25 25 25 25 25 25 25 25 25 25 25 25 25 25 25 25 25 25 Most Carried 25 | 3 15 15 15 15 15 15 15 18 25 25 25 25 25 25 25 25 25 25 25 25 25 25 25 25 25 25 25 25 25 Average Carried 20 | 1 9 14 14 14 14 14 14 15 15 23 24 24 24 24 24 23 23 24 24 24 24 25 24 23 24 23 24 24 24 Final Capacity 25 | 8 15 15 15 15 15 15 15 15 25 25 25 25 25 25 25 25 25 25 25 25 25 25 25 25 25 25 25 25 25 Final Carried 25 | 3 15 14 15 15 15 15 15 15 25 23 25 25 25 24 25 24 23 25 22 23 25 25 22 24 25 25 25 25 15 Class Distribution -------------------- 44% | Mutant 18% | Skirmisher 8% | Scavenger-Mutant 6% | Alien-Mutant 5% | Scavenger-Skirmisher 5% | Commander-Skirmisher 4% | Alien-Skirmisher Dominant Class ---------------- Mutant | -10/Materials Mutant | -10/Mines Mutant | -9/Materials Mutant | -9/Mines Mutant | -8/Materials Mutant | -8/Storage Mutant | -8/Recycling Mutant | -8/Scraptown Mutant | -6/Factory Skirmisher | -5/Factory Skirmisher | -5/Waste Skirmisher | -5/Factory Commander-Skirmisher | -5/Upper Caves Commander-Skirmisher | -5/Upper Caves Mutant | -5/Zhirov Skirmisher | -4/Proximity Caves Skirmisher | -4/Factory Mutant | -4/Waste Mutant | -4/Factory Mutant | -4/Extension Commander-Mutant | -4/Cetus Scavenger-Mutant | -4/Archives Hacker-Mutant | -4/Hub_04(d) Scavenger-Mutant | -3/Research Scavenger-Skirmisher | -3/Testing Scavenger-Mutant | -2/Research Skirmisher | -2/Quarantine Alien-Skirmisher | -2/Section 7 Alien-Mutant | -1/Access Resources | -11 -10 -10 -9 -9 -8 -8 -8 -8 -6 -5 -5 -5 -5 -5 -5 -4 -4 -4 -4 -4 -4 -4 -4 -3 -3 -2 -2 -2 -1 ----------- Run | Yrd Mat Min Mat Min Mat Sto Rec Scr Fac Fac Was Fac Upp Upp Zhi Pro Fac Was Fac Ext Cet Arc Hub Res Tes Res Qua Sec Acc Matter Collected 12735 | 270 133 75 225 135 140 320 20 365 1030 379 214 78 138 256 130 96 915 249 998 958 335 287 168 790 856 484 1190 731 770 Remotely 2852 | . . . . . . . . . . . . . . . . . 566 249 787 137 12 . . . . 151 614 336 . Salvage Created 29188 | 61 789 334 1405 120 1327 2121 180 70 3072 1219 . 639 184 457 201 183 1212 62 942 1772 193 337 858 622 2931 1761 758 1734 3644 Parts 1245 | 5 41 28 94 9 58 104 9 2 119 64 . 23 10 16 3 11 63 2 47 54 8 24 29 24 125 86 31 42 114 Haulers Intercepted 31 | . 2 . 5 . 4 6 . . 4 1 . 1 . . . . 1 . 1 . . . . 3 . 1 . . 2 Recyclers Shooed 19 | . . . . . 1 . . . 7 4 . . . . . . 2 . . 1 . . . . . 1 1 . 2 Parts Field Recycled . | . . . . . . . . . . . . . . . . . . . . . . . . . . . . . . Retrieved Matter . | . . . . . . . . . . . . . . . . . . . . . . . . . . . . . . Parts Self-Destructed 58 | . . . . . . . . . . . . . 17 25 1 15 . . . . . . . . . . . . . Prevented . | . . . . . . . . . . . . . . . . . . . . . . . . . . . . . . Kills | -11 -10 -10 -9 -9 -8 -8 -8 -8 -6 -5 -5 -5 -5 -5 -5 -4 -4 -4 -4 -4 -4 -4 -4 -3 -3 -2 -2 -2 -1 ------- Run | Yrd Mat Min Mat Min Mat Sto Rec Scr Fac Fac Was Fac Upp Upp Zhi Pro Fac Was Fac Ext Cet Arc Hub Res Tes Res Qua Sec Acc Combat Hostiles Destroyed 503 | . 19 13 20 8 21 35 3 1 45 22 . 6 3 10 . 5 25 . 20 25 3 . 12 6 39 24 26 40 72 Guns 118 | . 8 . . . 10 24 3 1 17 17 . 2 2 2 . 3 4 . . . . . . . 12 13 . . . Cannons 237 | . 10 13 18 3 4 . . . . . . . . . . 2 15 . 16 25 3 . 9 5 18 4 24 30 38 AOE 90 | . . . . 5 5 8 . . 23 3 . 4 1 8 . . 6 . 4 . . . 1 . 2 5 . . 15 Classes Destroyed 31 | 2 6 . 3 2 . 3 . 1 3 2 . 1 . 1 . . . . 1 1 . . . 1 1 1 . 1 1 Worker 17 | . 1 . 3 . 1 . . . 4 1 . . . . . . 2 . 2 . . . 1 . . . . 1 1 Builder 28 | . . . 1 . . 4 . . 8 1 . 1 . . . . 5 . 1 . . . . . 1 4 . . 2 Tunneler 11 | 1 . 1 1 . . . . . . . . . . . . . 3 . 4 . . . . . . . . . 1 Hauler 31 | . 2 . 5 . 4 6 . . 4 1 . 1 . . . . 1 . 1 . . . . 3 . 1 . . 2 Recycler 17 | 1 . . 1 . . . . . 3 . . . . . . . 2 . 1 2 . . . . . . 1 2 4 Carrier 1 | . . . . . . . . . . . . 1 . . . . . . . . . . . . . . . . . Mechanic 7 | . 1 . . . . . . . 1 . . . . . . . . . 1 . . . . . 1 . . . 3 Operator 15 | . . . 1 . . 1 . . . 1 . . . . . . . . . 1 . 9 . . 1 1 . . . Drone 4 | . . . . . . . . . . . . . . . . . . . . . . . . . . 4 . . . Watcher 26 | . 2 . 4 . 2 2 . . 1 . . 1 . . . . 2 . 1 1 . . 1 1 1 . 1 2 4 Swarmer 68 | . 6 9 2 3 4 7 . . 4 4 . . . 5 . 3 4 . . . . . . 2 . . 6 5 4 Cutter 3 | . . . . . . . . . . . . . . . . . . . 3 . . . . . . . . . . Saboteur 1 | . . . . . . . . . . 1 . . . . . . . . . . . . . . . . . . . Grunt 180 | . 13 4 11 2 11 14 . . 23 4 . 2 1 4 . . 8 . 4 15 . . 4 1 14 4 5 13 23 Brawler 8 | . . . . . . 3 . . 2 . . . 1 . . . . . . . . . . . . . . . 2 Duelist 3 | . . . . . . . . . . 2 . 1 . . . . . . . . . . . . . . . . . Protector 6 | . . . . . . 2 . . 2 . . 1 . . . . . . . . . . . . . . 1 . . Researcher 1 | . . . . . . . . . . . . . . . . . . . . . . . . . . . . 1 . Sentry 60 | . . . 7 . 6 8 3 . 2 3 . 2 . 1 . . 1 . 2 8 . . 4 . 2 4 . 4 3 Demolisher 1 | . . . . 1 . . . . . . . . . . . . . . . . . . . . . . . . . Specialist 13 | . . . . . . . . . 3 . . . . . . . . . . . . . . 1 3 2 . 4 . Hunter 38 | . . . . . . 1 . . 4 2 . . . . . . 4 . 4 . . . 4 1 5 8 . . 5 Programmer 77 | . . . . . . . . . 4 4 . . 1 . . 2 8 . 7 . . . . . 12 6 10 8 15 Heavy 4 | . . . . . . . . . 1 2 . . . . . . . . . . . . . . . . . 1 . Q-Series 8 | . . . . . . . . . . . . . . . . . . . . . . . . . . . . . 8 Behemoth 4 | . . . . . . . . . . . . . . . . . . . . 2 . . . . . . . . 2 Cetus Guard 3 | . . . . . . . . . . . . . . . . . . . . . 3 . . . . . . . . S7 Guard 1 | . . . . . . . . . . . . . . . . . . . . . . . . . . . . 1 . Lightning 3 | . . . . . . . . . . . . . . . . . . . . . . . . . . . 3 . . Tracker 7 | . . . . . . . . . . . . . . . . . . . . . . . . . . . . 2 5 Combat Programmer 7 | . . . . . . . . . . . . . . . . . . . . . . . . . . . . 2 5 Striker 2 | . . . . . . . . . . . . . . . . . . . . . . . . 1 1 . . . . Alpha 7 2 | . . . . . . . . . . . . . . . . . . . . . . . . . 1 . 1 . . Protovariant X 1 | . . . . . . . . . . . . . . . . . . . . . . . . . 1 . . . . Scrapper 1 | . . . . . . . . 1 . . . . . . . . . . . . . . . . . . . . . Scrapoid 2 | . . . . . . . . . . . . . . 2 . . . . . . . . . . . . . . . Assembled 2 | . . . . 2 . . . . . . . . . . . . . . . . . . . . . . . . . Surgeon 2 | . . . . . . . . . . . . . . . . . . . 2 . . . . . . . . . . Thug 3 | . . . 1 . . . . . . . . 1 . 1 . . . . . . . . . . . . . . . Martyr 1 | . . . . . . . . . . . . . . . . . . 1 . . . . . . . . . . . Best Kill Streak 17 | 2 5 3 7 3 8 12 1 1 17 6 . 5 1 7 . 3 14 . 9 5 2 4 4 4 7 16 7 9 13 Combat Bots Only 13 | . 3 3 4 3 5 10 1 1 12 6 . 4 1 7 . 3 7 . 6 4 2 . 4 4 7 13 7 9 11 Max Kills in Single Turn 11 | 1 1 1 2 2 3 3 1 1 5 1 . 5 1 4 . 1 6 1 4 2 1 1 1 1 1 3 1 1 11 Gunslinging 1 | . . . . . 1 1 . . . . . . . . . . . . . . . . . . . . . . . Exploded 6 | . . . . 2 3 2 . . 3 1 . 4 1 3 . . 3 . 2 . . . 1 . 1 1 . . 6 Melee . | . . . . . . . . . . . . . . . . . . . . . . . . . . . . . . Uniques/NPCs Destroyed 3 | . . . . . . . . . . . . . . . . . . . . . . . . . . . . . 3 Zhirov (-1/Access) Perun (-1/Access) Svarog (-1/Access) Combat | -11 -10 -10 -9 -9 -8 -8 -8 -8 -6 -5 -5 -5 -5 -5 -5 -4 -4 -4 -4 -4 -4 -4 -4 -3 -3 -2 -2 -2 -1 -------- Run | Yrd Mat Min Mat Min Mat Sto Rec Scr Fac Fac Was Fac Upp Upp Zhi Pro Fac Was Fac Ext Cet Arc Hub Res Tes Res Qua Sec Acc Hostile Shots Fired 3421 | . 63 41 89 22 61 97 8 8 281 147 . 2 . 31 . 15 293 . 145 128 5 9 103 46 549 289 126 233 630 Missed 875 | . 17 9 25 6 19 32 3 1 108 31 . . . 9 . 1 49 . 31 32 . 4 28 14 169 84 33 56 114 Intercepted 22 | . . . . . . . . . . . . . . . . . . . . . . . . . . . . . 22 Hits 2546 | . 46 32 64 16 42 65 5 7 173 116 . 2 . 22 . 14 244 . 114 96 5 5 75 32 380 205 93 177 516 Melee 7 | . . . . . . . . . 1 . . . . . . . . . 4 . . . . 1 . . . . 1 Projectile 2539 | . 46 32 64 16 42 65 5 7 172 116 . 2 . 22 . 14 244 . 110 96 5 5 75 31 380 205 93 177 515 AOE 20 | . . . . 4 . . . . . . . . . . . . . . 2 1 . . . . . . . . 13 Critical Strikes 115 | . 1 . 2 . 2 2 . 1 5 6 . . . 2 . 2 7 . 8 7 2 . 4 . 19 9 8 5 23 Actively Blocked 1 | . . . . . . . . . . . . . . . . . . . . . . . . . . . . . 1 Part Disruptions 9 | . . . . . . . . . . . . . . . . . . . 2 . . . . . 1 1 . 1 4 Damage Taken 39331 | . 540 314 846 380 678 1001 74 191 3378 3141 . 166 . 322 . 205 3152 32 1954 1277 75 68 1359 401 4986 4222 1511 1513 7545 Core 2354 | . 80 16 91 25 64 55 16 22 302 220 . 24 . 24 . 30 54 . 95 53 . 14 . 17 249 48 85 188 582 Absorbed by Shields 9148 | . . . . . . . . . . . . . . 121 . 76 977 32 724 1064 78 71 315 224 660 557 872 1446 1931 Reduced by Siege Mode 3157 | . . . . . . . . . 33 285 . . . . . 31 499 . 63 60 10 . . 58 721 674 139 230 354 Redirected to Core 194 | . . . . . . . . . . . . . . . . . . . . . . . . . . . 44 150 . Redirected to Shielding 108 | . . . . . . . . . . . . . . . . . . . . . . . . . . . . . 108 Ignored by Resistances 3051 | . . . . . . . . . 12 . . . . . . . . . . . . . 229 104 1200 768 96 260 382 Regen/Repaired (Parts) 7594 | . . . . . . 1007 . . 293 749 814 620 . . . . 762 918 428 . . . . 557 939 507 . . . Core Remaining (%) 73 | 100 . 61 . 71 . . . 71 64 . . . . . . 70 . . . . . . 81 . 79 . . 77 63 Volleys Fired 1915 | 5 71 23 88 17 56 77 8 3 115 108 . 25 7 15 20 10 103 . 74 87 13 14 81 57 236 95 87 166 254 Largest 2 | 2 2 2 2 2 2 2 2 2 2 2 . 2 2 2 1 2 2 . 2 2 1 1 1 1 2 2 1 1 1 Hottest 240 | 90 120 120 136 136 136 100 100 100 188 156 . 52 52 52 26 146 198 . 120 240 56 56 56 100 240 200 130 130 200 Shots Fired 2653 | 10 122 46 176 27 109 148 16 6 217 184 . 45 18 23 20 21 142 3 78 93 11 15 81 57 329 149 92 167 248 Gun 1086 | 10 74 . . . 72 145 16 6 192 172 . 45 16 14 20 10 36 . . . . . . . 161 97 . . . Cannon 1466 | . 48 46 176 20 35 . . . . 6 . . . . . 11 96 2 74 93 11 15 81 57 166 41 92 167 229 Launcher 98 | . . . . 7 2 3 . . 25 5 . . 2 9 . . 8 1 4 . . . . . 2 11 . . 19 Special 3 | . . . . . . . . . . 1 . . . . . . 2 . . . . . . . . . . . . Kinetic 264 | . . . . . . . . . . . . . . . . . 54 2 70 68 11 14 16 . . 3 26 . . Thermal 1919 | 10 122 46 176 20 35 2 . . 62 178 . 45 16 14 20 21 78 . 4 25 . 1 65 54 327 135 66 167 230 Explosive 79 | . . . . 7 2 3 . . 25 5 . . 2 9 . . 8 1 4 . . . . . 2 11 . . . Electromagnetic 388 | . . . . . 72 143 16 6 130 . . . . . . . . . . . . . . 3 . . . . 18 Robot Hit Streak 28 | 2 15 6 10 4 10 12 10 8 25 27 . 6 3 5 7 6 25 6 17 17 13 3 13 9 28 28 12 13 22 Robot Miss Streak 6 | 1 3 3 6 3 4 4 1 1 3 2 . 4 3 4 1 3 3 . 6 5 1 3 4 3 3 5 2 4 4 Penetration Max 1 | . . . . . . . . . . . . . . . . . . . . . 1 . 1 . . . . . . Secondary Targets 15 | . . . . . 2 3 . . 4 1 . . . . . . . . . . . . . . 3 2 . . . Max Gunslinging Chain 1 | . . . . . 1 1 . . 1 1 . . . . . . . . . . . . . . 1 1 . . . Capacitor 689 | . . . . . . . . . . . . . . . . . . . . . . . 65 57 117 . 60 167 223 Shots Hit Robots 1866 | 6 82 29 119 8 81 122 15 5 164 134 . 24 9 10 16 10 120 3 51 81 10 21 55 30 206 110 65 112 168 Core Hits 1106 | 3 36 17 39 10 52 87 6 5 164 52 . 15 5 25 4 5 78 12 42 63 4 6 32 15 66 75 21 40 127 Critical Kills 63 | . 1 . 1 . 1 . . . . . . . . . . . . . . . 3 . 3 1 16 12 2 8 15 Critical Parts Destroyed 42 | . . . . . . . . . . . . . . . . . . . . . 3 3 4 . 15 17 . . . Critical Strikes 144 | . 3 . 1 . 1 . . . 1 3 . . 1 . 1 1 7 . 3 6 6 6 7 1 31 31 11 8 15 Burn 12 | . 2 . . . . . . . 1 3 . . 1 . 1 1 3 . . . . . . . . . . . . Meltdown 34 | . 1 . 1 . 1 . . . . . . . . . . . . . . . . . 1 1 4 . 2 8 15 Destroy 74 | . . . . . . . . . . . . . . . . . . . . . 6 6 6 . 27 29 . . . Blast 24 | . . . . . . . . . . . . . . . . . 4 . 3 6 . . . . . 2 9 . . Melee Attacks 13 | . . . . . . . . . . . . . . . . . . . . . . 13 . . . . . . . Impact . | . . . . . . . . . . . . . . . . . . . . . . . . . . . . . . Slashing 13 | . . . . . . . . . . . . . . . . . . . . . . 13 . . . . . . . Piercing . | . . . . . . . . . . . . . . . . . . . . . . . . . . . . . . Sneak Attacks 11 | . . . . . . . . . . . . . . . . . . . . . . 11 . . . . . . . Combat Hostiles . | . . . . . . . . . . . . . . . . . . . . . . . . . . . . . . Follow-up Attacks . | . . . . . . . . . . . . . . . . . . . . . . . . . . . . . . Damage Inflicted 112984 | 77 1126 533 2396 431 2027 3603 277 95 9127 4622 . 1671 478 1341 624 562 6550 806 4872 5312 217 1453 2318 1325 9282 6202 6047 9895 29715 Guns 20297 | 77 673 . . . 1245 2553 277 95 3743 4078 . 884 338 309 624 210 861 . . . . . . . 2292 2038 . . . Cannons 60295 | . 453 525 2394 163 390 . . . . . . . . . . 352 4191 68 4048 5261 217 191 1855 1203 6464 1286 6047 9641 15546 Explosions 30989 | . . . . 268 392 1050 . . 5384 544 . 787 140 1032 . . 1480 738 812 . . . 415 122 524 2878 . 254 14169 Melee 1262 | . . . . . . . . . . . . . . . . . . . . . . 1262 . . . . . . . Ramming 141 | . . 8 2 . . . . . . . . . . . . . 18 . 12 51 . . 48 . 2 . . . . Kinetic 14081 | . . . . . . . . . . . . . . . . . 2874 68 3934 4224 217 156 212 . . 278 2118 . . Thermal 75430 | 77 1126 525 2394 163 533 807 . . 2552 4078 . 1671 338 309 624 562 2178 . 422 1037 . 35 1643 1220 8756 3076 3929 9641 27734 Explosive 12750 | . . . . 268 249 243 . . 3926 544 . . 140 1032 . . 1480 738 504 . . . . . 524 2848 . 254 . Electromagnetic 9320 | . . . . . 1245 2553 277 95 2649 . . . . . . . . . . . . . 415 105 . . . . 1981 Impact . | . . . . . . . . . . . . . . . . . . . . . . . . . . . . . . Slashing 1262 | . . . . . . . . . . . . . . . . . . . . . . 1262 . . . . . . . Piercing . | . . . . . . . . . . . . . . . . . . . . . . . . . . . . . . Highest Corruption 23 | . . . . . . . . . 5 3 3 10 10 10 10 14 9 9 18 18 18 18 7 1 14 21 21 21 23 Average Corruption 9 | . . . . . . . . . 2 2 2 9 10 10 10 10 7 9 11 18 18 10 3 1 6 16 11 12 14 Corruption Purged 21 | . . . . . . . . . . . 3 . . . . . . . . . . 18 . . . . . . . Corruption Blocked . | . . . . . . . . . . . . . . . . . . . . . . . . . . . . . . Effects 772 | . . . . . . . . . 18 15 12 30 45 46 11 60 28 15 44 58 26 13 . 6 72 28 68 65 112 Message Errors 183 | . . . . . . . . . 7 3 3 2 12 13 5 23 9 2 10 17 7 4 . . 14 7 8 13 24 Matter Fused 188 | . . . . . . . . . 8 5 2 8 8 15 1 15 5 1 11 15 5 1 . . 17 5 16 19 31 Heat Flow Errors 86 | . . . . . . . . . 2 1 2 6 4 6 1 3 3 2 3 2 5 3 . 1 9 4 12 7 10 Energy Discharges 73 | . . . . . . . . . . 2 2 3 2 5 2 4 3 . 3 8 2 . . 2 8 4 5 7 11 Parts Rejected 7 | . . . . . . . . . . . . . . . . . 1 . . 1 . . . . 1 1 1 1 1 Parts Fused 10 | . . . . . . . . . . 1 . 1 . 1 . . . 2 . 1 . . . . 3 . . 1 . Data Loss (minor) 86 | . . . . . . . . . . 1 1 5 9 2 2 5 4 3 8 6 2 3 . 1 5 4 9 5 11 Data Loss (major) 46 | . . . . . . . . . . . 1 3 2 2 . 4 3 1 4 . 3 1 . 2 5 . 5 4 6 Misfires 34 | . . . . . . . . . . . 1 1 6 2 . 3 . 3 3 . . 1 . . 2 . 6 2 4 Alerts 18 | . . . . . . . . . 1 1 . . 2 . . 1 . 1 1 . . . . . 2 1 4 . 4 Misdirections 11 | . . . . . . . . . . . . . . . . . . . 1 2 . . . . . 2 1 5 . Weapon Failures 30 | . . . . . . . . . . 1 . 1 . . . 2 . . . 6 2 . . . 6 . 1 1 10 Overload Shots 64 | . . . . . . . . . 7 19 . . . . . . 1 . 3 6 . . . . 22 6 . . . Effects 6 | . . . . . . . . . 1 2 . . . . . . . . . 1 . . . . 2 . . . . Energy Bleed 2 | . . . . . . . . . . . . . . . . . . . . 1 . . . . 1 . . . . Heat Surge 4 | . . . . . . . . . 1 2 . . . . . . . . . . . . . . 1 . . . . Overflow Damage 7039 | . 11 . 6 . . 22 . . 213 9 . . . 5 . 12 408 . 598 110 . 571 12 29 153 147 1004 969 2760 Projectiles 4777 | . 11 . 6 . . . . . . . . . . . . 12 229 . 583 110 . . 12 29 146 51 1004 944 1640 Explosions 1691 | . . . . . . 22 . . 213 9 . . . 5 . . 179 . 15 . . . . . 7 96 . 25 1120 Melee 571 | . . . . . . . . . . . . . . . . . . . . . . 571 . . . . . . . Knockbacks 74 | . . . . . . . . . . . . . . . . . 11 . 17 25 . . 5 . . 1 15 . . Impact 2 | . . . . . . . . . . . . . . . . . . . . . . . 2 . . . . . . Kinetic 69 | . . . . . . . . . . . . . . . . . 11 . 16 24 . . 3 . . 1 14 . . Secondary 3 | . . . . . . . . . . . . . . . . . . . 1 1 . . . . . . 1 . . Self-Inflicted Damage 2156 | . . . . 87 27 103 . . 171 . . . . 8 . . 287 65 292 . . . 103 33 . 413 . . 567 Shots 56 | . . . . 2 1 4 . . 4 . . . . 1 . . 6 1 5 . . . 1 1 . 11 . . 19 Rammed 8 | . . 2 1 . . . . . . . . . . . . . 1 . . 1 . . 2 . 1 . . . . Targets Rammed 10 | . . 2 1 . . . . . . . . . . . . . 1 . 1 1 . . 3 . 1 . . . . Kicked . | . . . . . . . . . . . . . . . . . . . . . . . . . . . . . . Crushed 2 | . . . . . . . . . . . . . . . . . . . 1 . . . 1 . . . . . . Highest Temperature 433 | 150 384 298 204 216 247 49 5 67 124 433 148 237 218 154 176 288 198 167 162 223 382 188 36 239 244 229 243 372 348 Average Temperature 84 | 78 118 115 60 112 84 17 3 43 36 120 74 86 60 65 95 86 86 63 38 66 161 71 12 68 80 67 77 122 90 Received Heat Transfer 5335 | . 279 93 354 33 324 378 27 109 861 297 . 27 . 68 . . 409 . 106 248 . 16 133 41 461 201 40 141 689 Effects 8 | . 1 . . . . . . . . 3 . . . . . . . . . . 3 . . . . . . 1 . Shutdowns 3 | . . . . . . . . . . 1 . . . . . . . . . . 1 . . . . . . 1 . Energy Bleed 1 | . . . . . . . . . . 1 . . . . . . . . . . . . . . . . . . . Interference 3 | . . . . . . . . . . 1 . . . . . . . . . . 2 . . . . . . . . Matter Decay 1 | . 1 . . . . . . . . . . . . . . . . . . . . . . . . . . . . Siege Activations 61 | . . . . . . . . . 1 3 . . . . . 2 7 . 2 3 1 . . 1 8 4 5 9 15 Total Turns 1165 | . . . . . . . . . 21 97 . . . . . 22 165 . 52 42 4 . . 10 210 146 81 135 180 Longest Duration 101 | . . . . . . . . . 21 65 . . . . . 12 52 . 34 31 4 . . 10 63 101 33 28 42 Martial Activations . | . . . . . . . . . . . . . . . . . . . . . . . . . . . . . . Shielding Activations . | . . . . . . . . . . . . . . . . . . . . . . . . . . . . . . Robots Disrupted 2 | . . . . . . . . . 1 . . . . . . . . . . . . . . . . . . . 1 Combat Hostiles 1 | . . . . . . . . . . . . . . . . . . . . . . . . . . . . . 1 Robots Corrupted 18 | . . . . . 2 4 . . 5 . . . . . . . . . 1 . . . . . . . . . 6 Combat Hostiles 14 | . . . . . 1 3 . . 4 . . . . . . . . . . . . . . . . . . . 6 Parts Fried 75 | . . . . . 10 15 5 2 16 . . . . . . . . . 1 . . . . 1 . . . . 25 Impact Corruptions 2 | . . . . . . . . . . . . . . . . . . . 2 . . . . . . . . . . Robots Melted 48 | . 2 . 2 . 1 . . . 1 2 . . . . . . . . . . . . 2 1 7 2 2 10 16 Combat Hostiles 44 | . 1 . 2 . 1 . . . 1 2 . . . . . . . . . . . . 2 1 7 2 2 10 13 Parts Melted 132 | . 8 3 12 . 3 1 . . 3 17 . . . 1 . . 8 . . 6 . . 5 4 26 20 2 4 9 Heat Transferred 57102 | 211 2942 1110 4662 296 903 1115 . . 2622 5397 . 1386 432 358 703 506 2307 . 337 929 . 37 1665 1185 7525 3710 2061 5264 9439 Parts Sabotaged 1 | . . . . . . . . . . . . . . . . . . . . . . . . . . . . . 1 Parts Stolen . | . . . . . . . . . . . . . . . . . . . . . . . . . . . . . . Parts Stripped . | . . . . . . . . . . . . . . . . . . . . . . . . . . . . . . Power Chain Reactions 31 | . . . . . 3 13 . . 12 . . . . . . . . . . . . . . 1 . . . . 2 Alert | -11 -10 -10 -9 -9 -8 -8 -8 -8 -6 -5 -5 -5 -5 -5 -5 -4 -4 -4 -4 -4 -4 -4 -4 -3 -3 -2 -2 -2 -1 ------- Run | Yrd Mat Min Mat Min Mat Sto Rec Scr Fac Fac Was Fac Upp Upp Zhi Pro Fac Was Fac Ext Cet Arc Hub Res Tes Res Qua Sec Acc Maximum Alert Level 5 | . 1 . 1 . 2 2 1 . 3 2 1 4 . . . . 3 1 2 4 3 2 3 2 1 2 1 3 5 Low Security (%) 53 | 100 91 100 74 100 42 35 29 . 57 . 95 35 . . . . 55 81 57 . . 6 28 77 93 31 86 77 . Level 1 16 | . 8 . 25 . 33 18 70 . 13 34 4 1 . . . . 6 18 27 46 . 55 22 17 6 19 13 5 . Level 2 16 | . . . . . 23 45 . . 2 65 . 8 . . . . 38 . 14 26 . 37 7 4 . 49 . 9 29 Level 3 10 | . . . . . . . . . 27 . . 17 . . . . . . . 18 100 . 41 . . . . 7 53 Level 4 2 | . . . . . . . . . . . . 37 . . . . . . . 7 . . . . . . . . 12 Level 5 . | . . . . . . . . . . . . . . . . . . . . . . . . . . . . . 4 High Security . | . . . . . . . . . . . . . . . . . . . . . . . . . . . . . . Max Security . | . . . . . . . . . . . . . . . . . . . . . . . . . . . . . . Peak Influence 2599 | 5 219 124 240 85 438 603 267 . 1077 675 210 1565 . . . . 702 235 678 1519 996 485 1053 425 333 627 370 879 2599 Initial 850 | . . 31 . 32 12 161 217 . . 524 210 . . . . . 11 235 . 329 850 374 62 425 60 186 340 74 527 Average 312 | . 129 30 79 14 255 345 213 . 338 456 53 745 . . . . 276 106 215 542 909 348 514 186 82 372 140 190 870 Influence Increases 25556 | 10 588 315 721 185 831 1167 296 . 1834 1116 . 2222 228 559 5 145 1104 20 1462 2062 356 271 1772 352 1246 924 931 1506 3328 Destroy 0b10 Robot/C 12060 | . 380 260 400 120 420 680 60 . 1000 440 . 720 140 400 . 120 500 . 540 920 160 80 500 140 780 480 500 820 1500 Destroy 0b10 Robot/NC 875 | 10 30 5 80 . 35 75 . . 120 20 . 40 . . 5 . 75 . 55 35 10 45 30 30 20 30 15 25 85 Destroy Leader 2374 | . 78 50 128 30 112 166 . . 220 102 . 126 10 20 . 20 106 . 134 104 . . 138 18 82 132 62 194 342 Allied During Kill 2875 | . . . . . . 8 . . 29 . . 692 78 139 . 5 . . 160 800 148 125 653 24 . . . . 14 Successful Hack 827 | . 10 . 20 . 50 21 26 . 36 35 . 10 . . . . 8 . 35 50 . . 68 18 83 . 138 128 91 Select Force Hacks 350 | . 60 . 30 . . . 210 . . . . . . . . . . . . . . . 50 . . . . . . Disable Machine 1200 | . 30 . 15 . 60 135 . . 90 30 . 75 . . . . 75 . 180 15 15 15 75 30 105 15 60 120 60 Destroy Structure 3405 | . . . 3 35 19 82 . . 174 74 . 244 . . . . 140 20 358 138 8 6 258 92 146 267 66 159 1116 Partial Spotted 30 | . . . . . . . . . . . . . . . . . . . . . . . . . 15 . . 15 . Lose Combat Pursuer 660 | . . . 45 . 135 . . . 165 15 . 15 . . . . . . . . 15 . . . 15 . 90 45 120 Active Sensor Use 900 | . . . . . . . . . . 400 . 300 . . . . 200 . . . . . . . . . . . . Influence Decreases 22959 | 10 506 397 637 237 480 993 658 195 763 1585 602 673 1044 680 617 127 448 694 790 1215 939 1028 1141 1053 1024 649 1404 760 1610 Entered New Map 6538 | . . 51 . 52 20 222 340 195 . 547 392 . 574 140 612 . 7 439 . 343 669 562 117 385 49 145 266 59 352 Time Decay 10985 | 10 496 328 457 175 460 571 318 . 523 518 210 439 470 490 5 107 391 255 318 422 230 416 254 478 558 404 524 480 678 Lost Part 858 | . 10 18 30 10 . 10 . . 140 70 . . . 10 . . 50 . 20 40 . 10 10 . 70 80 10 10 260 Lost Ally 1346 | . . . . . . 40 . . 100 . . 234 . 40 . 20 . . 302 260 40 40 160 40 . 20 20 10 20 Purge Threat 3232 | . . . 150 . . 150 . . . 450 . . . . . . . . 150 150 . . 600 150 347 . 584 201 300 Squads Dispatched 163 | . 3 1 2 . . 4 . . 20 14 . 12 . . . . 10 . 9 5 . . 8 12 11 7 6 17 22 Investigation 38 | . 2 1 1 . . 1 . . 4 7 . 6 . . . . 4 . . . . . 2 6 2 1 . . 1 Extermination 37 | . . . . . . . . . 2 3 . 2 . . . . 3 . 2 . . . 1 . 5 2 6 3 8 Reinforcement 48 | . 1 . 1 . . 1 . . 9 2 . 2 . . . . 2 . 6 2 . . 2 6 1 4 . 8 1 Assault 21 | . . . . . . 2 . . 3 2 . 2 . . . . 1 . 1 3 . . 2 . . . . . 5 Garrison 9 | . . . . . . . . . 2 . . . . . . . . . . . . . 1 . 3 . . 3 . Intercept 10 | . . . . . . . . . . . . . . . . . . . . . . . . . . . . 3 7 Searches Triggered . | . . . . . . . . . . . . . . . . . . . . . . . . . . . . . . Construction Impeded 7 | . . . . . . 1 . . 3 . . . . . . . . . . . . . 1 . . 1 . 1 . Haulers Reinforced 15 | . . . . . . . . . 3 . . 2 . . . . 1 . 1 . . . . 5 . 2 . . 1 Active Scanning Responses 9 | . . . . . . . . . . 4 . 3 . . . . 2 . . . . . . . . . . . . Cargo Convoy Interrupts 2 | . . . . . . . . . 1 . . 1 . . . . . . . . . . . . . . . . . Stealth | -11 -10 -10 -9 -9 -8 -8 -8 -8 -6 -5 -5 -5 -5 -5 -5 -4 -4 -4 -4 -4 -4 -4 -4 -3 -3 -2 -2 -2 -1 --------- Run | Yrd Mat Min Mat Min Mat Sto Rec Scr Fac Fac Was Fac Upp Upp Zhi Pro Fac Was Fac Ext Cet Arc Hub Res Tes Res Qua Sec Acc Distress Signals 36 | . . . 2 1 1 3 . . 4 1 . . . . . . 1 . 1 1 3 . 2 6 2 1 1 4 2 Communications Jammed 103 | . . . . . . . . . . 27 . 23 . . . . 4 . 5 44 . . . . . . . . . Distress Signals 96 | . . . . . . . . . . 20 . 23 . . . . 4 . 5 44 . . . . . . . . . Times Spotted 759 | . 25 12 36 8 27 41 3 4 75 28 . 16 5 16 . 6 33 . 25 54 10 9 40 19 51 25 38 58 95 Peak Tracking Total 20 | . 4 3 4 3 5 6 1 4 12 5 . 4 4 10 . 5 8 . 5 7 5 2 20 5 6 6 6 6 8 Tactical Retreats 33 | . 1 . 2 . 5 . . . 8 1 . 1 . . . . . . . . 1 . . . 1 . 5 3 5 Traps | -11 -10 -10 -9 -9 -8 -8 -8 -8 -6 -5 -5 -5 -5 -5 -5 -4 -4 -4 -4 -4 -4 -4 -4 -3 -3 -2 -2 -2 -1 ------- Run | Yrd Mat Min Mat Min Mat Sto Rec Scr Fac Fac Was Fac Upp Upp Zhi Pro Fac Was Fac Ext Cet Arc Hub Res Tes Res Qua Sec Acc Traps Triggered 18 | . 1 . . . . 2 . . . 2 . 2 . . . . 1 . . . . . . . 2 1 1 . 6 Indirectly 5 | . . . . . . . . . . . . . . . . . . . . . . . . . . . . . 5 Trap Hack Attempts . | . . . . . . . . . . . . . . . . . . . . . . . . . . . . . . Triggered . | . . . . . . . . . . . . . . . . . . . . . . . . . . . . . . Disarmed . | . . . . . . . . . . . . . . . . . . . . . . . . . . . . . . Reprogrammed 4 | . . . 4 . . . . . . . . . . . . . . . . . . . . . . . . . . Reused . | . . . . . . . . . . . . . . . . . . . . . . . . . . . . . . Traps Extracted . | . . . . . . . . . . . . . . . . . . . . . . . . . . . . . . Installed . | . . . . . . . . . . . . . . . . . . . . . . . . . . . . . . Triggered . | . . . . . . . . . . . . . . . . . . . . . . . . . . . . . . Time Bombs Activated 1 | . . . . . . . . . . . . . . . . . . . . . . . . . . . . . 1 Machines | -11 -10 -10 -9 -9 -8 -8 -8 -8 -6 -5 -5 -5 -5 -5 -5 -4 -4 -4 -4 -4 -4 -4 -4 -3 -3 -2 -2 -2 -1 ---------- Run | Yrd Mat Min Mat Min Mat Sto Rec Scr Fac Fac Was Fac Upp Upp Zhi Pro Fac Was Fac Ext Cet Arc Hub Res Tes Res Qua Sec Acc Machines Disabled 91 | . 2 . 1 . 4 9 . . 6 2 . 5 1 4 1 . 5 . 12 2 1 1 5 2 11 1 4 8 4 Max in Single Turn 6 | . 1 . 1 . 1 2 . . 2 1 . 4 1 1 1 . 2 . 6 1 1 1 1 1 1 1 1 1 2 Garrison Access 6 | . . . . . 1 . . . . . . 1 . . . . . . 1 . . . 1 . 1 . 1 . . Network Hub 2 | . . . . . . . . . . . . . . . . . . . . . . . 2 . . . . . . Machines Repaired . | . . . . . . . . . . . . . . . . . . . . . . . . . . . . . . Machines Dismantled 2 | . . . . . . 1 . . . . . . . . . . . . . . 1 . . . . . . . . Machines Sabotaged 1 | . . . . . . . . . . . . . . . . . . . . . . . 1 . . . . . . Overloaded Fab Kills . | . . . . . . . . . . . . . . . . . . . . . . . . . . . . . . Hacking | -11 -10 -10 -9 -9 -8 -8 -8 -8 -6 -5 -5 -5 -5 -5 -5 -4 -4 -4 -4 -4 -4 -4 -4 -3 -3 -2 -2 -2 -1 --------- Run | Yrd Mat Min Mat Min Mat Sto Rec Scr Fac Fac Was Fac Upp Upp Zhi Pro Fac Was Fac Ext Cet Arc Hub Res Tes Res Qua Sec Acc Machines Accessed 167 | . 7 1 12 . 9 12 12 3 8 9 . 9 . . 4 . 6 . 4 16 1 . 7 6 9 2 15 7 8 Terminals 111 | . 5 . 11 . 8 10 5 . 1 5 . 2 . . . . 4 . 2 16 1 . 6 2 7 1 13 7 5 Fabricators 8 | . . . . . . . . . 3 . . 2 . . . . . . . . . . . 2 . . . . 1 Repair Stations 12 | . . . . . . 2 . . 1 1 . 1 . . . . 1 . 1 . . . . 1 1 1 1 . 1 Recycling Units 22 | . 2 . 1 . . . 7 . 3 3 . 3 . . . . 1 . . . . . . 1 . . . . 1 Scanalyzers . | . . . . . . . . . . . . . . . . . . . . . . . . . . . . . . Garrison Access 6 | . . . . . 1 . . . . . . 1 . . . . . . 1 . . . 1 . 1 . 1 . . Total Hacks 564 | . 15 1 31 . 33 35 22 8 15 26 . 19 . . 17 . 16 . 9 33 2 . 31 36 61 3 87 34 30 Successful 311 | . 6 1 10 . 20 20 16 8 9 15 . 13 . . 17 . 9 . 8 14 . . 16 20 31 1 46 16 15 Failed 250 | . 8 . 20 . 13 15 6 . 6 11 . 6 . . . . 7 . 1 19 2 . 15 16 30 2 40 18 15 Catastrophic 36 | . . . 1 . 3 2 1 . 1 2 . . . . . . 2 . 1 1 . . 1 2 4 1 8 2 4 Database Lockouts 3 | . 1 . 1 . . . . . . . . . . . . . . . . . . . . . . . 1 . . Manual 337 | . 14 . 19 . 21 20 17 . 11 17 . 9 . . . . 9 . 5 15 1 . 15 26 38 3 60 22 15 Terminals 429 | . 13 . 30 . 30 27 11 . 3 16 . 4 . . . . 11 . 6 33 2 . 28 22 50 2 83 34 24 Fabricators 24 | . . . . . . . . . 7 . . 5 . . . . . . . . . . . 8 . . . . 4 Repair Stations 38 | . . . . . . 8 . . 2 3 . 5 . . . . 3 . 2 . . . . 3 9 1 1 . 1 Recycling Units 34 | . 2 . 1 . . . 11 . 3 7 . 4 . . . . 2 . . . . . . 3 . . . . 1 Scanalyzers . | . . . . . . . . . . . . . . . . . . . . . . . . . . . . . . Garrison Access 13 | . . . . . 3 . . . . . . 1 . . . . . . 1 . . . 3 . 2 . 3 . . Terminal Hacks 156 | . 2 1 7 . 11 7 5 8 . 6 . . . . 17 . 3 . 3 11 . . 8 9 15 . 27 8 8 Record 7 | . . . . . . . . 2 . . . . . . 5 . . . . . . . . . . . . . . Part Schematic 6 | . . . . . 1 . . . . . . . . . 4 . . . . . . . 1 . . . . . . Robot Analysis 20 | . . . 1 . 1 1 2 6 . . . . . . 4 . . . . . . . . . 1 . 4 . . Prototype ID Bank 29 | . 1 . 1 . 3 2 3 . . 1 . . . . 4 . 1 . . . . . . 2 2 . 7 2 . Open Door 15 | . . 1 . . . 1 . . . . . . . . . . . . . 10 . . . . . . 2 . 1 Level Access Points 2 | . . . . . . . . . . . . . . . . . . . . . . . 1 . . . . 1 . Branch Access Points 5 | . . . 1 . 1 . . . . . . . . . . . . . 1 . . . . 1 . . . . 1 Emergency Access Points 1 | . . . . . . . . . . . . . . . . . . . . . . . . . . . 1 . . Machine Index 1 | . . . . . . . . . . . . . . . . . . . . . . . . . . . . . 1 Terminal Index 8 | . . . . . 1 1 . . . 1 . . . . . . 1 . 1 . . . 1 . . . 1 1 . Alert Level 10 | . . . . . . 1 . . . . . . . . . . . . . . . . . 1 3 . 3 . 2 Unreport Threat 23 | . . . 1 . . 1 . . . 3 . . . . . . . . 1 1 . . 4 1 3 . 4 2 2 Locate Traps 4 | . 1 . 1 . 1 . . . . . . . . . . . . . . . . . . 1 . . . . . Reprogram Traps 1 | . . . 1 . . . . . . . . . . . . . . . . . . . . . . . . . . Maintenance Status 1 | . . . . . . . . . . . . . . . . . . . . . . . . 1 . . . . . Patrol Status 4 | . . . . . . . . . . . . . . . . . . . . . . . . 1 1 . . 1 1 Reinforcement Status 1 | . . . . . . . . . . . . . . . . . . . . . . . . . . . 1 . . Recall Extermination 2 | . . . . . . . . . . . . . . . . . . . . . . . . . 1 . 1 . . Hauler Manifests 7 | . . . 1 . 1 . . . . 1 . . . . . . 1 . . . . . . 1 1 . 1 . . Zone Layout 9 | . . . . . 2 . . . . . . . . . . . . . . . . . 1 . 3 . 2 1 . Fabricator Hacks 8 | . . . . . . . . . 2 . . 2 . . . . . . . . . . . 3 . . . . 1 Network Status 5 | . . . . . . . . . 1 . . 1 . . . . . . . . . . . 2 . . . . 1 Build 3 | . . . . . . . . . 1 . . 1 . . . . . . . . . . . 1 . . . . . Repair Station Hacks 26 | . . . . . . 7 . . 2 2 . 4 . . . . 2 . 2 . . . . 2 5 . . . . Scan Component 14 | . . . . . . 4 . . 1 1 . 2 . . . . 1 . 1 . . . . 1 3 . . . . Repair 12 | . . . . . . 3 . . 1 1 . 2 . . . . 1 . 1 . . . . 1 2 . . . . Recycling Unit Hacks . | . . . . . . . . . . . . . . . . . . . . . . . . . . . . . . Scanalyzer . | . . . . . . . . . . . . . . . . . . . . . . . . . . . . . . Garrison Access Hacks 6 | . . . . . 1 . . . . . . 1 . . . . . . 1 . . . 1 . 1 . 1 . . Seal Access 6 | . . . . . 1 . . . . . . 1 . . . . . . 1 . . . 1 . 1 . 1 . . Unauthorized Hacks 113 | . 4 . 3 . 8 6 9 . 5 7 . 6 . . . . 4 . 2 3 . . 7 6 10 1 18 8 6 Terminals 81 | . 2 . 2 . 8 5 2 . . 4 . 2 . . . . 2 . 2 3 . . 7 3 10 . 18 8 3 Track 22 | . . . . . 3 2 . . . 2 . . . . . . . . . . . . 2 . 3 . 8 2 . Assimilate 6 | . . . . . . . . . . . . . . . . . . . . . . . . . . . 4 2 . Botnet 43 | . 2 . 2 . 3 2 2 . . 2 . 2 . . . . 2 . 2 2 . . 3 2 5 . 5 4 3 Disrupt 3 | . . . . . . 1 . . . . . . . . . . . . . 1 . . . . 1 . . . . Operators 6 | . . . . . 2 . . . . . . . . . . . . . . . . . 1 1 1 . 1 . . Sabotage 1 | . . . . . . . . . . . . . . . . . . . . . . . 1 . . . . . . Fabricators 7 | . . . . . . . . . 2 . . 1 . . . . . . . . . . . 2 . . . . 2 Report 3 | . . . . . . . . . 1 . . . . . . . . . . . . . . 1 . . . . 1 Liberate 1 | . . . . . . . . . . . . . . . . . . . . . . . . . . . . . 1 Haulers 3 | . . . . . . . . . 1 . . 1 . . . . . . . . . . . 1 . . . . . Repair Stations 3 | . . . . . . 1 . . . . . . . . . . 1 . . . . . . . . 1 . . . Patch 3 | . . . . . . 1 . . . . . . . . . . 1 . . . . . . . . 1 . . . Recycling Units 22 | . 2 . 1 . . . 7 . 3 3 . 3 . . . . 1 . . . . . . 1 . . . . 1 Tunnel 10 | . 2 . 1 . . . 7 . . . . . . . . . . . . . . . . . . . . . . Fedlink 7 | . . . . . . . . . 2 3 . 1 . . . . 1 . . . . . . . . . . . . Scrapoids 2 | . . . . . . . . . 1 . . 1 . . . . . . . . . . . . . . . . . Scraphulk 3 | . . . . . . . . . . . . 1 . . . . . . . . . . . 1 . . . . 1 Scanalyzers . | . . . . . . . . . . . . . . . . . . . . . . . . . . . . . . Garrison Access . | . . . . . . . . . . . . . . . . . . . . . . . . . . . . . . Data Cores Recovered 2 | . . . . . . 1 . . . . . . . . . . . . . 1 . . . . . . . . . Used 1 | . . . . . . . . . . . . . . . . . . . . 1 . . . . . . . . . Hacking Detections 123 | . 4 . 11 . 9 11 6 . 4 8 . 5 . . . . 4 . 2 10 2 . 7 5 8 1 13 7 6 Full Trace Events 2 | . . . . . . 1 1 . . . . . . . . . . . . . . . . . . . . . . Feedback Events . | . . . . . . . . . . . . . . . . . . . . . . . . . . . . . . Feedback Blocked . | . . . . . . . . . . . . . . . . . . . . . . . . . . . . . . Robot Schematics Acquired 1 | . . . . . . . . . . . . . . . . . . . . . . . . . . . . 1 . Robots Built 5 | . . . . . . . . . . . . 3 . . . . . . . . . . . 2 . . . . . Authchips . | . . . . . . . . . . . . . . . . . . . . . . . . . . . . . . Time 280 | . . . . . . . . . . . . 76 . . . . . . . . . . . 204 . . . . . Total Robot Build Rating 31 | . . . . . . . . . . . . 15 . . . . . . . . . . . 16 . . . . . Part Schematics Acquired 9 | . . . . . 1 . . . . . . . . . 4 . . . . . . . 1 . . . . 3 . Parts Built 2 | . . . . . . . . . 2 . . . . . . . . . . . . . . . . . . . . Authchips . | . . . . . . . . . . . . . . . . . . . . . . . . . . . . . . Time 64 | . . . . . . . . . 64 . . . . . . . . . . . . . . . . . . . . Total Part Build Rating 16 | . . . . . . . . . 16 . . . . . . . . . . . . . . . . . . . . Parts Repaired 11 | . . . . . . 3 . . 1 1 . 2 . . . . 1 . . . . . . 1 2 . . . . Time 640 | . . . . . . 114 . . 38 54 . 142 . . . . 68 . 68 . . . . 74 82 . . . . Parts Recycled . | . . . . . . . . . . . . . . . . . . . . . . . . . . . . . . Recycled Matter . | . . . . . . . . . . . . . . . . . . . . . . . . . . . . . . Retrieved Matter . | . . . . . . . . . . . . . . . . . . . . . . . . . . . . . . Retrieved Components . | . . . . . . . . . . . . . . . . . . . . . . . . . . . . . . Parts Scanalyzed . | . . . . . . . . . . . . . . . . . . . . . . . . . . . . . . Part Schematics Acquired . | . . . . . . . . . . . . . . . . . . . . . . . . . . . . . . Parts Damaged . | . . . . . . . . . . . . . . . . . . . . . . . . . . . . . . Bothacking | -11 -10 -10 -9 -9 -8 -8 -8 -8 -6 -5 -5 -5 -5 -5 -5 -4 -4 -4 -4 -4 -4 -4 -4 -3 -3 -2 -2 -2 -1 ------------ Run | Yrd Mat Min Mat Min Mat Sto Rec Scr Fac Fac Was Fac Upp Upp Zhi Pro Fac Was Fac Ext Cet Arc Hub Res Tes Res Qua Sec Acc Used RIF Installer . | . . . . . . . . . . . . . . . . . . . . . . . . . . . . . . Robots Hacked 3 | . . . . . . . . . . 1 . . . . . . 2 . . . . . . . . . . . . Non-combat 3 | . . . . . . . . . . 1 . . . . . . 2 . . . . . . . . . . . . Combat . | . . . . . . . . . . . . . . . . . . . . . . . . . . . . . . Robot Hacks Applied 3 | . . . . . . . . . . 1 . . . . . . 2 . . . . . . . . . . . . parse_system 1 | . . . . . . . . . . . . . . . . . 1 . . . . . . . . . . . . find_chute 2 | . . . . . . . . . . 1 . . . . . . 1 . . . . . . . . . . . . Relay Couplers Released 3 | . . . . . . . . . . . . . . . . . . . . . . . . . . . . . 3 Programmers 3 | . . . . . . . . . . . . . . . . . . . . . . . . . . . . . 3 Fabnet Peak Effective % . | . . . . . . . . . . . . . . . . . . . . . . . . . . . . . . Robots Rewired 11 | . . . . . . . . . . . . . 1 . . . . . . 10 . . . . . . . . . Allies Hacked 3 | . . . . . . . . . . . . . 1 . . . . . 2 . . . . . . . . . . Hacks Repelled . | . . . . . . . . . . . . . . . . . . . . . . . . . . . . . . Allies | -11 -10 -10 -9 -9 -8 -8 -8 -8 -6 -5 -5 -5 -5 -5 -5 -4 -4 -4 -4 -4 -4 -4 -4 -3 -3 -2 -2 -2 -1 -------- Run | Yrd Mat Min Mat Min Mat Sto Rec Scr Fac Fac Was Fac Upp Upp Zhi Pro Fac Was Fac Ext Cet Arc Hub Res Tes Res Qua Sec Acc Total Allies 96 | . . . . . . 2 . . 5 . 20 9 1 . . . . 20 . 24 5 . . 3 . . 2 1 4 Largest Group 20 | . . . . . . 2 . . 5 . 20 20 7 6 1 1 . 20 19 18 11 10 8 3 . . 2 1 1 Highest-Rated Group 896 | . . . . . . 62 . . 146 . 684 684 410 353 123 123 . 749 699 896 849 811 606 239 . . 20 26 139 Highest-Rated Ally 159 | . . . . . . 31 . . 31 . 50 123 123 123 123 123 . 50 50 159 159 159 96 139 . . 10 26 139 Total Orders 29 | . . . . . . . . . . . . . . . 2 . . . 7 . . . . . . 20 . . . STAY 6 | . . . . . . . . . . . . . . . 1 . . . . . . . . . . 5 . . . FOLLOW 2 | . . . . . . . . . . . . . . . 1 . . . . . . . . . . 1 . . . EXPLORE 21 | . . . . . . . . . . . . . . . . . . . 7 . . . . . . 14 . . . Ally Attacks 826 | . . . . . . 20 . . 45 . . 226 23 41 . 12 . . 79 157 34 34 119 11 . . . . 25 Total Damage 23316 | . . . . . . 206 . . 908 . . 5336 587 1208 . 230 . . 2621 5073 899 1054 3781 316 . . . . 1097 Kills 134 | . . . . . . 1 . . 8 . . 37 8 10 . 1 . . 8 27 7 4 17 3 . . . . 3 Allies Corrupted 12 | . . . . . . . . . . . . 6 . . . . . . 4 . . . 2 . . . . . . Allies Melted 1 | . . . . . . . . . . . . . . . . . . . . 1 . . . . . . . . . Intel | -11 -10 -10 -9 -9 -8 -8 -8 -8 -6 -5 -5 -5 -5 -5 -5 -4 -4 -4 -4 -4 -4 -4 -4 -3 -3 -2 -2 -2 -1 ------- Run | Yrd Mat Min Mat Min Mat Sto Rec Scr Fac Fac Was Fac Upp Upp Zhi Pro Fac Was Fac Ext Cet Arc Hub Res Tes Res Qua Sec Acc Active Infowar (turns) 32162 | 25 52 1219 248 57 . 1795 711 2244 1618 1408 858 1359 1196 1289 333 1431 1322 632 1048 1036 486 1010 540 1228 2228 962 1795 1390 2642 Optics 14939 | . . . . . . . . . . . . . . . . . 594 632 1048 1036 486 1010 540 1228 1657 962 1795 1390 2561 Sensors 7330 | . . . . . . . . . . . . . . . . . . . . . . . . 23 1827 521 1510 1312 2137 A.S.S. 8274 | . . . . . . . . . . 1081 858 1359 1196 1289 333 1431 727 . . . . . . . . . . . . IFF 362 | . . . . . . . . . . . . . . . . . . . . . . . . . . . . . 362 Terrain 4015 | . . . . . . . . . . . . . . . . . . . . . . . . 1031 1897 497 . 2 588 Structural 771 | . . . . . . . . . 662 109 . . . . . . . . . . . . . . . . . . . Seismic 8296 | 25 52 1219 248 57 . 1795 711 2244 1618 327 . . . . . . . . . . . . . . . . . . . Cloaking 865 | . . . . . . . . . . . . . . . . . . . . . . . . . . 374 489 2 . Jamming 5590 | . . . . . . . . . . 293 710 1359 11 . . . 595 609 1007 1006 . . . . . . . . . ECM 3 | . . . . . . . . . . . . . . . . . . . . . . . . . 1 . 2 . . Robot Analysis Total 20 | . . . 1 . 1 1 2 6 . . . . . . 4 . . . . . . . . . 1 . 4 . . Derelict Logs Recovered 11 | . . 1 . 1 . . . 2 . . . . 3 1 . 3 . . . . . . . . . . . . . Drone Launches 35 | . . . . . . . . . . . . . . . . . . . 7 . . . . . . 28 . . . Drone Recoveries 25 | . . . . . . . . . . . . . . . . . . . 3 . . . . . . 22 . . . Exploration | -11 -10 -10 -9 -9 -8 -8 -8 -8 -6 -5 -5 -5 -5 -5 -5 -4 -4 -4 -4 -4 -4 -4 -4 -3 -3 -2 -2 -2 -1 ------------- Run | Yrd Mat Min Mat Min Mat Sto Rec Scr Fac Fac Was Fac Upp Upp Zhi Pro Fac Was Fac Ext Cet Arc Hub Res Tes Res Qua Sec Acc Turns Passed 37487 | 112 1371 1252 1688 932 1233 1820 711 2244 1773 1433 858 1359 1196 1289 333 1431 1323 632 1048 1036 486 1010 540 1228 2342 962 1795 1390 2660 Spaces Moved 18540 | 54 615 723 865 480 594 787 409 1307 901 564 434 720 712 743 166 829 492 311 434 496 178 552 269 650 924 377 1036 627 1291 Core 3 | 3 . . . . . . . . . . . . . . . . . . . . . . . . . . . . . Treads 17447 | 51 615 723 609 480 594 787 409 1179 195 564 434 720 712 743 166 829 492 311 434 496 178 552 269 650 924 377 1036 627 1291 Legs . | . . . . . . . . . . . . . . . . . . . . . . . . . . . . . . Wheels 1090 | . . . 256 . . . . 128 706 . . . . . . . . . . . . . . . . . . . . Hover . | . . . . . . . . . . . . . . . . . . . . . . . . . . . . . . Flight . | . . . . . . . . . . . . . . . . . . . . . . . . . . . . . . Fastest Speed 50 | 50 160 160 105 170 170 167 167 130 115 160 152 162 162 162 162 162 155 161 150 150 150 150 150 155 156 140 143 143 143 Average Speed 156 | 153 160 160 151 170 170 170 167 168 125 160 157 165 162 162 162 162 161 164 160 150 161 150 150 160 158 152 143 143 143 Slowest Speed 255 | 160 160 160 250 170 170 250 167 247 160 160 240 225 162 162 162 162 166 255 163 225 225 232 155 161 161 156 143 215 232 Overloaded Moves . | . . . . . . . . . . . . . . . . . . . . . . . . . . . . . . Propulsion Burnouts . | . . . . . . . . . . . . . . . . . . . . . . . . . . . . . . Robots Hopped . | . . . . . . . . . . . . . . . . . . . . . . . . . . . . . . Potential Cave-ins . | . . . . . . . . . . . . . . . . . . . . . . . . . . . . . . Cave-ins Triggered . | . . . . . . . . . . . . . . . . . . . . . . . . . . . . . . Exploration Rate (%) 63 | 4 82 98 80 96 56 90 95 91 26 17 96 20 83 91 62 92 15 97 19 78 73 97 49 24 97 24 92 36 32 Regions Visited 29 Branch Regions 16 Pre-discovered Areas 16 | . 2 . 1 1 . . 7 . 1 . . . 1 . 3 . . . . . . . . . . . . . . Known Exits Taken 15 | . . . 1 . 1 . . . 1 . . 1 1 1 1 1 . . 1 . . . 1 1 1 1 1 1 . Unknown Exits Taken 10 | 1 1 1 . 1 . 1 1 1 . . . . . . . . . . . 1 1 1 . . . . . . . Scrap Searched 16 | . . 1 . 2 . . . 5 . . . . 4 2 . 2 . . . . . . . . . . . . . Spaces Dug 235 | . . . . . . . . . 18 27 . 5 . 8 . . 7 . 86 . . . . 7 21 8 8 15 25 Terrain Destroyed 1795 | . . . . 43 17 73 . . 187 49 . 25 22 92 . 7 72 13 181 62 . . 179 21 80 107 22 54 489 Melee . | . . . . . . . . . . . . . . . . . . . . . . . . . . . . . . Projectile 431 | . . . . . . . . . 11 16 . 13 5 3 . 7 37 . 50 62 . . 15 19 52 18 22 40 61 AOE 1364 | . . . . 43 17 73 . . 176 33 . 12 17 89 . . 35 13 131 . . . 164 2 28 89 . 14 428 Terrain Rammed . | . . . . . . . . . . . . . . . . . . . . . . . . . . . . . . Walls Destroyed . | . . . . . . . . . . . . . . . . . . . . . . . . . . . . . . Machines Disabled . | . . . . . . . . . . . . . . . . . . . . . . . . . . . . . . Actions | -11 -10 -10 -9 -9 -8 -8 -8 -8 -6 -5 -5 -5 -5 -5 -5 -4 -4 -4 -4 -4 -4 -4 -4 -3 -3 -2 -2 -2 -1 --------- Run | Yrd Mat Min Mat Min Mat Sto Rec Scr Fac Fac Was Fac Upp Upp Zhi Pro Fac Was Fac Ext Cet Arc Hub Res Tes Res Qua Sec Acc Total 25090 | 70 879 770 1070 566 710 1099 423 1349 1316 942 614 846 743 806 213 898 905 437 726 725 363 707 396 835 1574 615 1308 1111 2074 Wait 3123 | 2 165 14 51 61 29 178 1 7 215 212 120 88 13 40 4 55 251 77 168 40 121 102 25 60 270 78 78 236 362 Move 18512 | 53 614 722 864 479 593 786 408 1306 900 564 433 719 711 742 165 828 492 310 433 495 177 551 268 649 923 376 1035 626 1290 Hop . | . . . . . . . . . . . . . . . . . . . . . . . . . . . . . . Pick Up 277 | 3 14 2 15 1 7 6 2 7 28 15 13 5 5 2 3 2 11 7 5 18 7 1 5 9 31 10 14 9 20 Fast Attach 272 | 7 3 . 12 1 6 15 . 7 8 4 11 3 . . 6 . 5 11 6 9 10 12 2 16 17 11 23 21 46 Attach 161 | . . 2 4 . 2 4 . . 15 9 6 . . 1 3 2 17 8 10 7 2 . 2 4 14 13 8 1 27 Detach 73 | . . . 1 . 2 1 . . 1 2 3 . . . 3 . 9 5 8 . 2 . 1 6 5 7 5 . 12 Swap 252 | . 6 4 7 6 4 12 1 5 22 15 3 . 3 4 . . 9 2 8 9 7 3 2 11 40 10 26 25 8 Drop 418 | . 6 1 27 1 11 12 3 14 12 13 25 6 3 2 9 1 7 17 11 18 16 11 7 23 37 12 32 27 54 Fire 1915 | 5 71 23 88 17 56 77 8 3 115 108 . 25 7 15 20 10 103 . 74 87 13 14 81 57 236 95 87 166 254 Melee 13 | . . . . . . . . . . . . . . . . . . . . . . 13 . . . . . . . Ram . | . . . . . . . . . . . . . . . . . . . . . . . . . . . . . . Kick . | . . . . . . . . . . . . . . . . . . . . . . . . . . . . . . Crush 10 | . . 2 1 . . . . . . . . . . . . . 1 . 1 1 . . 3 . 1 . . . . Escape Stasis . | . . . . . . . . . . . . . . . . . . . . . . . . . . . . . . Rewire 42 | . . . . . . . . . . . . . 1 . . . . . . 41 . . . . . . . . . Trap 1 | . . . . . . . . . . . . . . . . . . . . . . . . . . . . . 1 Miscellaneous 21 | . . . . . . 8 . . . . . . . . . . . . 2 . 8 . . . . 3 . . . Route ------- -11/Scrapyard -10/Materials (discovered 4 exits: *Mat x2 / *Min / [*Sub]) -10/Mines (discovered 3 exits: *Mat x2 / [*Exi]) -9/Materials (discovered 4 exits: *Mat x2 / *Min x2) -9/Mines (discovered 2 exits: *Mat x2) -8/Materials (discovered 2 exits: [*Fac] / *Sto) -8/Storage (discovered 2 exits: [*Fac] / *Rec) -8/Recycling (discovered 2 exits: *Fac / *Scr) -8/Scraptown (discovered 2 exits: *Fac x2) -6/Factory (discovered 3 exits: *Fac x3) -5/Factory -5/Waste -5/Factory (discovered 2 exits: *Fac / *Upp) -5/Upper Caves -5/Upper Caves (discovered 2 exits: *Fac / *Zhi) -5/Zhirov -4/Proximity Caves -4/Factory -4/Waste -4/Factory (discovered 4 exits: Upp x2 / *Ext x2) -4/Extension (discovered 2 exits: *Res / *Cet) -4/Cetus (discovered 2 exits: *Res / [*Arc]) -4/Archives (discovered 3 exits: *Res / *Hub x2) -4/Hub_04(d) (discovered 4 exits: *Res x4) -3/Research (discovered 3 exits: Arm / *Tes x2) -3/Testing -2/Research -2/Quarantine (discovered 3 exits: *Acc / *Sec / *Frg) -2/Section 7 -1/Access (discovered 2 exits: [*Sur] / Com) To Fleet Rendezvous History --------- Turn | Location | Event 6 | -11/Scrapyard | Discovered new exit (range 15) 113 | -11/Scrapyard | Entered Materials 120 | -10/Materials | Discovered new exit (range 16) 312 | -10/Materials | Build established: Mutant 798 | -10/Materials | Discovered new exit (range 6) 913 | -10/Materials | Derelicts attacked the area 951 | -10/Materials | Discovered new exit (range 10) 1139 | -10/Materials | Central database locked down 1215 | -10/Materials | Discovered new exit (range 10) 1484 | -10/Materials | Entered Mines 1862 | -10/Mines | Learned Materials garrison access intel 1882 | -10/Mines | Met a Derelict shopkeep closing up shop 2268 | -10/Mines | Discovered new exit (range 11) 2543 | -10/Mines | Discovered new exit (range 3) 2580 | -10/Mines | Deemed a non-threat by the Exiles lab entrance 2580 | -10/Mines | Discovered new exit (range 5) 2736 | -10/Mines | Entered Materials 2736 | -9/Materials | Evolved 2 slots: Propulsion x1, Utility x1 3076 | -9/Materials | Discovered new exit (range 14) 3634 | -9/Materials | Discovered new exit (range 3) 3748 | -9/Materials | Central database locked down 4042 | -9/Materials | Identified exit to Mines 4424 | -9/Materials | Entered Mines 4437 | -9/Mines | Assembled infested the area 4547 | -9/Mines | Discovered new exit (range 9) 4827 | -9/Mines | Found a hidden stash of uninstalled traps 5001 | -9/Mines | Discovered new exit (range 9) 5356 | -9/Mines | Entered Materials 5356 | -8/Materials | Evolved 2 slots: Propulsion x1, Utility x1 5357 | -8/Materials | Loaded intel: 1 garrison access location 6382 | -8/Materials | Discovered new exit (range 7) 6408 | -8/Materials | Discovered new exit (range 13) 6448 | -8/Materials | Identified exit to Storage 6589 | -8/Materials | Entered Storage 6742 | -8/Storage | Repaired Arm. Treads 7021 | -8/Storage | Used back door to open Recycling access 7021 | -8/Storage | Discovered new exit (range 5) 7119 | -8/Storage | Met a pair of Derelict thieves 7290 | -8/Storage | Destroyed 10 combat bots 7680 | -8/Storage | Repaired Arm. Treads 7720 | -8/Storage | Repaired Arm. Treads 8016 | -8/Storage | Discovered new exit (range 9) 8409 | -8/Storage | Entered Recycling 8693 | -8/Recycling | Discovered new exit (range 11) 9082 | -8/Recycling | Scanned before Scraplab entrance 9105 | -8/Recycling | Entered Scraplab 9119 | -8/Recycling | Discovered new exit (range 2) 9120 | -8/Recycling | Entered Scraptown 9501 | -8/Scraptown | Scanned Subdweller tech in exchange for log data 9506 | -8/Scraptown | Learned location of 1 exit from Factory 9509 | -8/Scraptown | Learned Factory trap positions 9536 | -8/Scraptown | Discovered new exit (range 7) 9651 | -8/Scraptown | Visited The Evicted 9668 | -8/Scraptown | Visited TADAMA 9771 | -8/Scraptown | Visited Cave Peace 9790 | -8/Scraptown | Visited Red Mages 9883 | -8/Scraptown | Visited UFD Registry 9883 | -8/Scraptown | Registered with UFD as "Scrapglider" 9905 | -8/Scraptown | Visited Cyclists 9920 | -8/Scraptown | Entered Cyclist Reading Room 9960 | -8/Scraptown | Visited Symbiants 10017 | -8/Scraptown | Visited Junk Repository 10284 | -8/Scraptown | Visited Curators Association 10354 | -8/Scraptown | Visited A0-MCA Data Center 10366 | -8/Scraptown | Given an A- rating by A0-MCA 10371 | -8/Scraptown | Found A0-MCA's Component Scanner 10402 | -8/Scraptown | Visited Junk Cannon Lab 10427 | -8/Scraptown | Found Prototype Special Weapon 10427 | -8/Scraptown | Identified Junk Cannon 10629 | -8/Scraptown | Visited Science Testing Area 10654 | -8/Scraptown | Visited DA-N13 Charitable Foundation 10661 | -8/Scraptown | Found DCF Scrap (28 items) 10705 | -8/Scraptown | Visited Junk Repository 10750 | -8/Scraptown | Visited Cartography Club 10929 | -8/Scraptown | Visited Observation Area 10999 | -8/Scraptown | Visited Supply Room 11042 | -8/Scraptown | Visited Analyses Database 11267 | -8/Scraptown | Met Optimus 11267 | -8/Scraptown | Accepted into 0bPrime 11337 | -8/Scraptown | Civil war broke out across Scraptown 11344 | -8/Scraptown | Discovered new exit (range 5) 11364 | -8/Scraptown | Entered Factory 11364 | -6/Factory | Evolved 4 slots: Propulsion x1, Utility x3 11365 | -6/Factory | Identified exit to Factory 11366 | -6/Factory | Loaded intel: 98 trap records 11509 | -6/Factory | Fabricated Quantum Rifle (x2) 11624 | -6/Factory | Loaded intel: 8 recycling unit locations 12145 | -6/Factory | Discovered exit to Factory (range 7) 12503 | -6/Factory | Repaired Arm. Treads 12552 | -6/Factory | Spotted B-75 Beast 12565 | -6/Factory | Learned location of Protoforge (-2) 12643 | -6/Factory | Cargo convoy interrupted 12685 | -6/Factory | Lost 4 parts (1p2n1u) 12689 | -6/Factory | Destroyed 12 combat bots 12831 | -6/Factory | Found System Purifier 12911 | -6/Factory | Scrapoids reinforcements arrived? 12970 | -6/Factory | Lost 4 allies 12979 | -6/Factory | Garrison activated, responded to threat 13098 | -6/Factory | Discovered exit to Factory (range 11) 13114 | -6/Factory | First assault squad dispatched 13132 | -6/Factory | Found Active Sensor Suite 13137 | -6/Factory | Entered another Factory area 13137 | -5/Factory | Evolved 2 slots: Power x1, Utility x1 13351 | -5/Factory | Loaded intel: 8 recycling unit locations 13410 | -5/Factory | Build established: Scavenger-Mutant 13464 | -5/Factory | Discovered new exit (range 4) 13490 | -5/Factory | Identified exit to Upper Caves 13731 | -5/Factory | Lost 4 parts (2p1n1w) 13737 | -5/Factory | First assault squad dispatched 13992 | -5/Factory | Build established: Skirmisher 14075 | -5/Factory | Repaired Centrium Heavy Treads 14371 | -5/Factory | Lost 3 parts (3u) 14570 | -5/Factory | Sucked down chute 14570 | -5/Factory | Entered Waste 14571 | -5/Waste | Joined by Warlord forces that had cleared the area 14959 | -5/Waste | Found Damper Plating 15292 | -5/Waste | Discovered new exit (range 11) 15297 | -5/Waste | Found Prototype Device 15297 | -5/Waste | Identified Exp. Shield Generator 15350 | -5/Waste | Build established: Scavenger-Skirmisher 15404 | -5/Waste | Identified exit to Factory 15428 | -5/Waste | Entered Factory 15428 | -5/Factory | Accompanied by 20 allies 15692 | -5/Factory | Loaded intel: 8 recycling unit locations 15804 | -5/Factory | Discovered new exit (range 15) 15831 | -5/Factory | Identified exit to Factory 15949 | -5/Factory | Scraphulk reinforcements arrived? 15995 | -5/Factory | Lost 5 allies 16023 | -5/Factory | Discovered exit to Upper Caves (range 12) 16024 | -5/Factory | Fabricated G-50 Soldier? 16109 | -5/Factory | Lost 6 allies 16113 | -5/Factory | System corruption reached 10% 16310 | -5/Factory | Repaired Imp. Heavy Siege Treads? 16328 | -5/Factory | First assault squad dispatched 16360 | -5/Factory | Build established: Skirmisher 16415 | -5/Factory | Repaired Biometal Heavy Treads 16637 | -5/Factory | Lost 3 allies 16660 | -5/Factory | Cargo convoy interrupted 16715 | -5/Factory | Scrapoid reinforcements arrived 16787 | -5/Factory | Entered Upper Caves 16787 | -5/Upper Caves | Accompanied by 7 allies 16804 | -5/Upper Caves | P-70 Sage assimilated allied 05F07-D 17009 | -5/Upper Caves | Build established: Commander-Skirmisher 17053 | -5/Upper Caves | Attracted the attention of an 0b10 outpost 17094 | -5/Upper Caves | Learned Factory stockpile data 17300 | -5/Upper Caves | Learned 8 Factory zone layouts 17397 | -5/Upper Caves | Found DCF Scrap (15 items) 17942 | -5/Upper Caves | Discovered new exit (range 8) 17965 | -5/Upper Caves | Identified exit to Upper Caves 17983 | -5/Upper Caves | Entered another Upper Caves area 17983 | -5/Upper Caves | Accompanied by 6 allies 17985 | -5/Upper Caves | Ambushed by research squad 18026 | -5/Upper Caves | Discovered exit to Factory (range 7) 18769 | -5/Upper Caves | Learned Factory terminal intel 18786 | -5/Upper Caves | Attracted the attention of an 0b10 base 18825 | -5/Upper Caves | Destroyed 7 combat bots 18825 | -5/Upper Caves | Lost 4 allies 19044 | -5/Upper Caves | Attracted the attention of an 0b10 checkpoint 19096 | -5/Upper Caves | Build established: Skirmisher 19143 | -5/Upper Caves | Discovered new exit (range 14) 19185 | -5/Upper Caves | Identified exit to Zhirov 19272 | -5/Upper Caves | Entered Zhirov 19272 | -5/Zhirov | Accompanied by 1 ally 19272 | -5/Zhirov | Discovered new exit (range 4) 19277 | -5/Zhirov | Identified exit to Proximity Caves 19303 | -5/Zhirov | Met Zhirov 19351 | -5/Zhirov | Learned location of Quarantine (-2) 19351 | -5/Zhirov | Learned location of Command (-1) 19366 | -5/Zhirov | Zhirov requested help retrieving the SGEMP Prototype 19391 | -5/Zhirov | Found Alien Artifact 19391 | -5/Zhirov | Identified Integrated Dissipator 19391 | -5/Zhirov | Installed Integrated Dissipator, increased core heat dissipation (+20) 19411 | -5/Zhirov | Found Alien Artifact 19605 | -5/Zhirov | Entered Proximity Caves 19605 | -4/Proximity Caves | Accompanied by 1 ally 19797 | -4/Proximity Caves | Learned Research terminal intel 20900 | -4/Proximity Caves | Learned Research terminal intel 21036 | -4/Proximity Caves | Entered Factory 21036 | -4/Factory | Evolved 2 slots: Propulsion x1, Utility x1 21037 | -4/Factory | Identified exit to Research 21039 | -4/Factory | Loaded intel: 27 terminal locations 21253 | -4/Factory | Loaded intel: 8 recycling unit locations 21508 | -4/Factory | Repaired Adv. Heavy Treads 21868 | -4/Factory | Lost 4 parts (4u) 21891 | -4/Factory | Destroyed 7 combat bots 22065 | -4/Factory | Build established: Mutant 22286 | -4/Factory | First assault squad dispatched 22359 | -4/Factory | Sucked down chute 22359 | -4/Factory | Entered Waste 22360 | -4/Waste | Joined by Warlord forces that had cleared the area 22591 | -4/Waste | Found Prototype Processor 22591 | -4/Waste | Identified Spectral Analyzer 22912 | -4/Waste | Discovered new exit (range 13) 22991 | -4/Waste | Entered Factory 22991 | -4/Factory | Accompanied by 19 allies 23527 | -4/Factory | System corruption reached 10% 23557 | -4/Factory | Lost 4 allies 23803 | -4/Factory | Identified exit to Upper Caves 23803 | -4/Factory | Identified exit to Extension 23991 | -4/Factory | First assault squad dispatched 24039 | -4/Factory | Entered Extension 24136 | -4/Extension | Rescued a captive Derelict 24296 | -4/Extension | Rescued a captive Derelict 24298 | -4/Extension | Rescued a captive Derelict 24344 | -4/Extension | Rescued a captive Derelict 24344 | -4/Extension | Rescued a captive Derelict 24403 | -4/Extension | Spotted B-86 Titan 24408 | -4/Extension | Rescued a captive Derelict 24442 | -4/Extension | Spotted B-86 Titan 24454 | -4/Extension | Destroyed B-86 Titan 24463 | -4/Extension | Destroyed B-86 Titan 24500 | -4/Extension | Lost 3 allies 24539 | -4/Extension | First assault squad dispatched 24588 | -4/Extension | Rescued a captive Derelict 24707 | -4/Extension | Rescued a captive Derelict 24810 | -4/Extension | Rescued a captive Derelict 24848 | -4/Extension | Rescued a captive Derelict 24851 | -4/Extension | Rescued a captive Derelict 24866 | -4/Extension | Rescued A7 24891 | -4/Extension | Rescued a captive Derelict 24892 | -4/Extension | Rescued a captive Derelict 24944 | -4/Extension | Build established: Commander-Mutant 24984 | -4/Extension | Discovered exit to Research (range 10) 24985 | -4/Extension | Discovered new exit (range 6) 25052 | -4/Extension | Disrupted transfer network 25075 | -4/Extension | Entered Cetus 25075 | -4/Cetus | Accompanied by 8 allies (A7) 25080 | -4/Cetus | Acquired a Cetus Manufacturing Module code from A7 25100 | -4/Cetus | Spotted Cetus Guard 25100 | -4/Cetus | Spotted Cetus Guard 25102 | -4/Cetus | Spotted Cetus Guard 25103 | -4/Cetus | Spotted Cetus Guard 25106 | -4/Cetus | Destroyed Cetus Guard 25116 | -4/Cetus | Allies destroyed Cetus Guard 25117 | -4/Cetus | Allies destroyed Cetus Guard 25125 | -4/Cetus | Allies destroyed Cetus Guard 25139 | -4/Cetus | Lost 11 allies 25233 | -4/Cetus | Started Cetus Manufacturing Module 25258 | -4/Cetus | Manufactured an Enhanced Grunt 25265 | -4/Cetus | Escorted A7 to Cetus Mainframe 25283 | -4/Cetus | Manufactured an Enhanced Grunt 25308 | -4/Cetus | Manufactured an Enhanced Grunt 25333 | -4/Cetus | Manufactured an Enhanced Grunt 25358 | -4/Cetus | Manufactured an Enhanced Grunt 25370 | -4/Cetus | Discovered new exit (range 24) 25403 | -4/Cetus | Spotted Cetus Guard 25403 | -4/Cetus | Spotted Cetus Guard 25406 | -4/Cetus | Spotted Cetus Guard 25406 | -4/Cetus | Destroyed Cetus Guard 25412 | -4/Cetus | Allies destroyed Cetus Guard 25412 | -4/Cetus | Spotted Cetus Guard 25415 | -4/Cetus | Allies destroyed Cetus Guard 25415 | -4/Cetus | Discovered exit to Research (range 24) 25418 | -4/Cetus | Destroyed Cetus Guard 25444 | -4/Cetus | Met Revision 17 25561 | -4/Cetus | Entered Archives 25561 | -4/Archives | Accompanied by 11 allies (A7) 25566 | -4/Archives | Received a hacking code to weaken MAIN.C 25622 | -4/Archives | Discovered new exit (range 23) 25630 | -4/Archives | Discovered new exit (range 21) 25636 | -4/Archives | Discovered exit to Research (range 24) 26098 | -4/Archives | Build established: Scavenger-Mutant 26571 | -4/Archives | Entered Hub_04(d) 26571 | -4/Hub_04(d) | Accompanied by 8 allies 26684 | -4/Hub_04(d) | Found Quantum Capacitor 26845 | -4/Hub_04(d) | Garrison activated, responded to threat 26989 | -4/Hub_04(d) | Build established: Hacker-Mutant 27055 | -4/Hub_04(d) | Spotted B-86 Titan 27071 | -4/Hub_04(d) | First assault squad dispatched 27072 | -4/Hub_04(d) | Allies destroyed B-86 Titan 27082 | -4/Hub_04(d) | Network Hub disabled 27089 | -4/Hub_04(d) | Spotted Lightning 27089 | -4/Hub_04(d) | Spotted Lightning 27089 | -4/Hub_04(d) | Spotted Lightning 27097 | -4/Hub_04(d) | Network Hub disabled 27109 | -4/Hub_04(d) | Spotted Lightning 27109 | -4/Hub_04(d) | Spotted Lightning 27111 | -4/Hub_04(d) | Spotted Lightning 27111 | -4/Hub_04(d) | Entered Research 27111 | -3/Research | Evolved 2 slots: Utility x2 27112 | -3/Research | Loaded intel: 23 terminal locations 27135 | -3/Research | Lost 5 allies 27311 | -3/Research | Revision forces began assault on 0b10 27386 | -3/Research | Identified exit to Armory 27386 | -3/Research | Identified exit to Testing 27391 | -3/Research | Met up with Revision 17++ 27402 | -3/Research | Build established: Scavenger-Mutant 27548 | -3/Research | Scraphulk reinforcements arrived? 27567 | -3/Research | Fabricated X-82 Rainmaker? 27635 | -3/Research | Repaired Biometal Heavy Treads 27773 | -3/Research | Found Prototype Device 27773 | -3/Research | Identified Exp. Focal Shield 27800 | -3/Research | Found Exp. Thermal Shield 27811 | -3/Research | Research terminal network offline 28005 | -3/Research | Spotted B-86 Titan 28041 | -3/Research | Spotted Striker 28063 | -3/Research | Destroyed Striker 28339 | -3/Research | Entered Testing 28557 | -3/Testing | Found Prototype Processor 28579 | -3/Testing | Identified Exp. Target Analyzer 28621 | -3/Testing | Found Prototype Energy Cannon 28632 | -3/Testing | Identified Imp. Potential Cannon 28882 | -3/Testing | Found Prototype Ballistic Cannon 28888 | -3/Testing | Identified Omega Cannon 28925 | -3/Testing | Spotted Striker 28925 | -3/Testing | Spotted Striker 28944 | -3/Testing | Spotted Alpha 7 28951 | -3/Testing | Destroyed Striker 28968 | -3/Testing | Destroyed Alpha 7 29005 | -3/Testing | Found Prototype Device 29005 | -3/Testing | Identified Exp. ECM Suite 29035 | -3/Testing | Found Prototype Energy Cannon 29039 | -3/Testing | Identified Hpw. Disruptor Cannon 29080 | -3/Testing | Stole the SGEMP Prototype 29151 | -3/Testing | Spotted PX-WAX1GBY1WD 29171 | -3/Testing | Destroyed PX-WAX1GBY1WD 29235 | -3/Testing | Destroyed 7 combat bots 29397 | -3/Testing | Found Prototype Device 29401 | -3/Testing | Identified Exp. EM Disruption Field 29409 | -3/Testing | Garrison activated, responded to threat 29446 | -3/Testing | Found Prototype Processor 29468 | -3/Testing | Identified Exp. Terrain Scan Processor 29527 | -3/Testing | Repaired Broken Biometal Heavy Treads 29581 | -3/Testing | Found Prototype Processor 29599 | -3/Testing | Identified Exp. Signal Interpreter 29832 | -3/Testing | Build established: Hacker-Skirmisher 29859 | -3/Testing | Found Spectral Analyzer 30158 | -3/Testing | Found Prototype Energy Gun 30166 | -3/Testing | Identified Hyp. EM Gauss Rifle 30190 | -3/Testing | Build established: Scavenger-Skirmisher 30283 | -3/Testing | Repaired Hvy. Siege Treads 30504 | -3/Testing | System corruption reached 10% 30576 | -3/Testing | Discovered new exit (range 11) 30602 | -3/Testing | Found Prototype Energy Cannon 30602 | -3/Testing | Identified Null Cannon 30675 | -3/Testing | Identified exit to Research 30681 | -3/Testing | Entered Research 30681 | -2/Research | Evolved 2 slots: Power x1, Utility x1 30682 | -2/Research | Loaded intel: 22 terminal locations 31018 | -2/Research | Discovered new exit (range 24) 31125 | -2/Research | Build established: Scavenger-Mutant 31186 | -2/Research | System corruption reached 10% 31195 | -2/Research | Lost 5 allies 31223 | -2/Research | Lost 6 parts (1p1n3u1w) 31230 | -2/Research | Destroyed 13 combat bots 31241 | -2/Research | Found Hvy. Reflective Plating 31545 | -2/Research | Identified exit to Quarantine 31643 | -2/Research | Entered Quarantine 31681 | -2/Quarantine | Build established: Skirmisher 31871 | -2/Quarantine | Found Alien Artifact 31943 | -2/Quarantine | Found Alien Artifact 31943 | -2/Quarantine | Identified Core Reset Matrix 31943 | -2/Quarantine | Identified Transdimensional Reconstructor 31943 | -2/Quarantine | Identified Subatomic Replicator 31943 | -2/Quarantine | Used Core Reset Matrix 31947 | -2/Quarantine | Detected hypermatrix surge 31947 | -2/Quarantine | Sensed 7 artifacts in vicinity 32013 | -2/Quarantine | Met incapacitated Sigix Warrior 32013 | -2/Quarantine | Lockdown squad dispatched 32026 | -2/Quarantine | Found Sigix Containment Pod 32080 | -2/Quarantine | Spotted Lightning 32094 | -2/Quarantine | Spotted Lightning 32096 | -2/Quarantine | Spotted Lightning 32120 | -2/Quarantine | Destroyed Lightning 32131 | -2/Quarantine | Destroyed Lightning 32153 | -2/Quarantine | Destroyed Lightning 32275 | -2/Quarantine | Found Unknown Device 32279 | -2/Quarantine | Identified Quantum Capacitor 32385 | -2/Quarantine | Spotted Alpha 7 32393 | -2/Quarantine | Destroyed Alpha 7 32432 | -2/Quarantine | Found Sigix Terminator 32572 | -2/Quarantine | Destroyed 7 combat bots 32607 | -2/Quarantine | Found Phase Redirector 32822 | -2/Quarantine | Central database locked down 32847 | -2/Quarantine | Discovered new exit (range 9) 33328 | -2/Quarantine | Spotted Fortress 33426 | -2/Quarantine | Discovered new exit (range 6) 33426 | -2/Quarantine | Discovered new exit (range 6) 33432 | -2/Quarantine | Identified exit to Protoforge 33436 | -2/Quarantine | Identified exit to Section 7 33438 | -2/Quarantine | Entered Section 7 33439 | -2/Section 7 | Detected hypermatrix surge 33439 | -2/Section 7 | Sensed 18 artifacts in vicinity 33644 | -2/Section 7 | Found Integrated Mediator 33644 | -2/Section 7 | Installed Integrated Mediator, increased core attachment efficiency 33737 | -2/Section 7 | Identified exit to Access 33772 | -2/Section 7 | Found Integrated Reactor 33772 | -2/Section 7 | Installed Integrated Reactor, increased core energy generation (+10) 33921 | -2/Section 7 | Found Integrated Dissipator 33921 | -2/Section 7 | Installed Integrated Dissipator, increased core heat dissipation (+20) 34190 | -2/Section 7 | Build established: Alien-Skirmisher 34459 | -2/Section 7 | Scanned by Researcher 34459 | -2/Section 7 | Spotted S7 Guard 34466 | -2/Section 7 | Destroyed S7 Guard 34491 | -2/Section 7 | Found Core Physics Calibrator 34552 | -2/Section 7 | Destroyed 8 combat bots 34605 | -2/Section 7 | Garrison activated, responded to threat 34638 | -2/Section 7 | Destroyed 9 combat bots 34736 | -2/Section 7 | Intercept squad dispatched 34741 | -2/Section 7 | Spotted Tracker 34742 | -2/Section 7 | Spotted Tracker 34747 | -2/Section 7 | Destroyed Tracker 34755 | -2/Section 7 | Spotted Combat Programmer 34756 | -2/Section 7 | Spotted Combat Programmer 34759 | -2/Section 7 | Destroyed Combat Programmer 34767 | -2/Section 7 | Destroyed Combat Programmer 34772 | -2/Section 7 | Destroyed Tracker 34828 | -2/Section 7 | Entered Access 34828 | -1/Access | Evolved 2 slots: Utility x2 34829 | -1/Access | Attacked by Zhirov 34845 | -1/Access | Destroyed Zhirov 34853 | -1/Access | Destroyed Perun 34854 | -1/Access | Destroyed Svarog 34863 | -1/Access | Found Transdimensional Reconstructor 34866 | -1/Access | Found Zhirov Special 34869 | -1/Access | Found Prototype Hackware 34869 | -1/Access | Identified Deep Network Scanner 34884 | -1/Access | Lost 3 parts (1p1u1w) 34884 | -1/Access | Found Prototype Processor 34884 | -1/Access | Identified Exp. Core Analyzer 34934 | -1/Access | Found Quantum Capacitor 35004 | -1/Access | System corruption reached 10% 35084 | -1/Access | Build established: Alien-Mutant 35328 | -1/Access | First assault squad dispatched 35344 | -1/Access | Discovered new exit (range 6) 35440 | -1/Access | Intercept squad dispatched 35446 | -1/Access | Spotted Tracker 35446 | -1/Access | Spotted Tracker 35449 | -1/Access | Destroyed Tracker 35454 | -1/Access | Destroyed Tracker 35484 | -1/Access | Spotted Combat Programmer 35492 | -1/Access | Destroyed Combat Programmer 35506 | -1/Access | Spotted Combat Programmer 35517 | -1/Access | Destroyed Combat Programmer 36204 | -1/Access | Found Quantum Capacitor 36277 | -1/Access | Scraphulk reinforcements arrived 36436 | -1/Access | Found Prototype Launcher 36436 | -1/Access | Identified Enh. Gamma Bomb Array 36446 | -1/Access | Found Enh. Gamma Bomb Array 36586 | -1/Access | Allied Derelicts emerged from ambush trap array 36741 | -1/Access | Identified exit to Command 36743 | -1/Access | Build established: Alien-Skirmisher 37060 | -1/Access | Destroyed 11 combat bots 37201 | -1/Access | Intercept squad dispatched 37208 | -1/Access | Spotted Tracker 37208 | -1/Access | Spotted Tracker 37209 | -1/Access | Spotted Tracker 37222 | -1/Access | Spotted Combat Programmer 37224 | -1/Access | Spotted Combat Programmer 37225 | -1/Access | Spotted Combat Programmer 37228 | -1/Access | Destroyed Tracker 37229 | -1/Access | Destroyed Tracker 37234 | -1/Access | Destroyed Combat Programmer 37236 | -1/Access | Destroyed Combat Programmer 37237 | -1/Access | Destroyed Tracker 37267 | -1/Access | Destroyed Combat Programmer 37274 | -1/Access | Found Prototype Device 37274 | -1/Access | Identified Exp. Phase Shifter 37295 | -1/Access | Build established: Alien-Mutant 37295 | -1/Access | Lost 4 parts (1n3u) 37381 | -1/Access | Spotted B-99 Colossus 37381 | -1/Access | Spotted B-99 Colossus 37389 | -1/Access | Used Subatomic Replicator to replicate Imp. Potential Cannon 37396 | -1/Access | Destroyed B-99 Colossus 37483 | -1/Access | Fired Sigix Terminator 37483 | -1/Access | Destroyed B-99 Colossus 37488 | *** | Heading to fleet! Last Messages --------------- 37447_ U-05 Engineer destroyed. 37453_ Penetrated by Slug. 37453_ Critical hit (Destroy). 37453_ Quantum Reactor destroyed. 37459_ Acquired 5 matter. 37459_ Penetrated by Slug. 37459_ Slug penetrates Sealed Heavy Doors. 37464_ B-99 Colossus exits siege mode. 37464_ Penetrated by Slug. 37470_ Adv. Heavy Siege Treads destroyed. 37470_ Lrn. IFF Parser destroyed. 37470_ Critical hit (Blast). 37470_ Penetrated by Slug. 37473_ OL%NLTI=KJ&V 37475_ Slug penetrates Sealed Heavy Doors. 37475_ Penetrated by Slug. 37481_ Slug penetrates Sealed Heavy Doors. 37483_ Sigix Terminator expended. 37487_ Dropped Zhirov Special. 37487_ Started Zhirov Special timer (10). Map ----- +----------------------------------------------------+ | % # %% + # ## | | %** # ###### ######### # #? | | "" "" # #?#####+#####????# # #? | | "F "" # ##?# #????############## #? | | ! """"" # #??# #???????## # ## | | # #??# " #?##?????# + # | | ] # #?##""" ! #????????# # # | | #######+### ##?# """ ####??#??# " # # | | ## # #??# " #?#??????#""" # # | | ?# # ##?# #?#?????## """ # # | | ?# " # #??# #?##?????# " # # | | ?# """ # #?## #??#??#??# # # | | ?# """ # ##?##########?????? ?# # + | | ?# " # #?#??#??#???????#? ######### # | | ?# / #?????????#?#????? ??????# # | | ?# # ##??????##??##??? ??????# # | | ?# # #?##?#?#?##???##? ?????# # | | ?######"### #????#?????????# ?????# ## | | ??# = ## #?????###?????## ????# # | | ### ## ####### #######;;;;;;;;;;;###?# # | | + ## """T""" #?# # | | # # ## """ """ #?# # | | # ######### ### # | | #+######"## # | | ## "" # | | ## % @" + | | ]!] ## & % | | ] ## | | ] ## " | | ## # | | ## ####### ######;;;;;;;;;;;;### % "# | | ## #?????###?????# ??#%% ## | | ## #?????#???????? ??# == "## | | ##% ##????????????? ???# % "#? | | ## %##?????????????? ???# === ##? | | ## ##?????##?????##;;;;;;;;#####[ "#? | | ### %#??#???????#???# #%* ##? | | # # % ###########????# "=*= #?? | | #### %%# #????# "" =/%[ #?? | | ?##########% # ! #????# "" "" =%"%== #?? | | ?# # # ##???# *[###"###? | | ?# # # #??#?# !!#?###### | | ?# " + + #???## % #???? | | ?# """ # # #????# #??? | | ?# """ # # #????# #?? | | ?# " # # #?#??# #?? | | ## # ############??## #? | | ## ?# #??????#??#????# = # | | ## ?# #?????###################+### | | #########?# #?????## !%!% # | +----------------------------------------------------+ Best States ------------- Heat Dissipation 137 Coolant Potential 100 Energy Generation 104 Energy Capacity 1100 Matter Stores 800 Matter Capacity 800 Sight Range 24 Robot Scan Range 20 Terrain Scan Range 24 Terrain Scan Density 10 ECM Strength 2 Jamming Range 16 Cloak Strength 3 Power Amplification 40 Additional Mass Support 9 Base Temperature (-) 100 Armor Coverage 2100 Resistance: KI 30 Resistance: TH 30 Weapon Shielding 66 Point Defense Rating 240 Weapon Cycling 30 Phase Shifting 20 Evasion (%) 60 Targeting Accuracy 8 Target Analysis 10 Core Analysis 6 Recoil Reduction 6 Energy Filtering 50 Particle Charging 30 Kinecelleration 40 Offensive Hacking 26 Defensive Hacking 12 Item Schematics ----------------- Prc. Phase Gun | -2/Section 7 | Archive Imp. Matter Neutralizer | -2/Section 7 | Archive Shock Maul | -2/Section 7 | Archive Robot Schematics ------------------ G-73 Enforcer | -2/Section 7 | Archive Fabricated ------------ Quantum Rifle | x2 | -6/Factory | Preloaded G-50 Soldier | x3 | -5/Factory | Preloaded X-82 Rainmaker | x2 | -3/Research | Preloaded Repaired ---------- Arm. Treads | 3% | -8/Storage Arm. Treads | 1% | -8/Storage Arm. Treads | 14% | -8/Storage Arm. Treads | 2% | -6/Factory Centrium Heavy Treads | 6% | -5/Factory Imp. Heavy Siege Treads | 50% | -5/Factory Biometal Heavy Treads | 50% | -5/Factory Adv. Heavy Treads | 32% | -4/Factory Biometal Heavy Treads | 14% | -3/Research Biometal Heavy Treads | 9% | -3/Testing | Broken Hvy. Siege Treads | 30% | -3/Testing Alien Tech Used ----------------- Integrated Dissipator Core Reset Matrix Phase Redirector Integrated Mediator Integrated Reactor Subatomic Replicator Sigix Terminator Achievements -------------- None Challenges ------------ None Game ------ Seed ProjectileForceScreen Manual? 0 Play Time 07:12:58 Cumulative 456.5 hours Start 2025.06.24 @ 12:03:51 End 2025.06.25 @ 21:11:39 Sessions 5 Manual Loads 0 Difficulty Rogue Special Mode None Game No. 103 Rogue 103 Adventurer 0 Explorer 0 Win Type 2 Total 33 Types 16/1/7/1/1/0/3/2/1/1 Lore% 88 Gallery% 79 Achievement% 81 Wizard Run 0 Options --------- Layout 1 ASCII 0 Keyboard 0 Movement Mouse Keybinds 0 Fullscreen 1 Font 24/Smallcaps Map View 50x35 Zoom Use 0% Tactical HUD 1 Map Filters NONE Filters NONE Steam 1 RUN: ec2d7897-75e5-44b9-aff2-fae1cee400c9